{"text_format":"1","workbook":"xlsx","n_sheets":3,"sheets":["Dokumentenauswertung","Punkteauswertung","Fragenauswertung"],"not_rendered":{"charts":1,"images":0,"macros":1,"external_links":0,"defined_names":0,"comments":0,"pivot_tables":0},"unopened":[],"bounds":{"document_bytes":16777216,"sheet_cells":100000,"rows_first":2000,"rows_last":500,"rows_between":2000,"halvings":0,"cell_chars":16384,"cell_head_chars":4096},"cells_cut":0,"cells_raw":0,"read":"whole","date_system":"1900"}

{"sheet":"Dokumentenauswertung","index":0,"n_rows":27,"n_cols":37,"rows_kept":27,"cut":false,"hidden":false,"merged":[]}
[]
[]
[]
[]
[]
[]
[]
[]
[null,null,null,"Fragebogen Nr.",1,2,3,4,5,6,7,8,9,10,11,12,13,14,15,16,17,18,19,20,21,22,23,24,25,26,27,28,29,30,31,32,33]
[]
[]
[]
["Frage #","Lösung","Punkte pro Frage","Richtig = 1"]
["A1","d",1,1]
["A2","a",1,1]
["A3.1","b",1,1]
["A3.2","c",1,1]
["A4","a",1,1]
["A5.1","b",1,1]
["A5.2","d",1,1]
["B1","ok",3,1]
["B2","ok",2,1]
["B3","ok",3,1]
["C1","a",1,1]
["C2","b",1,1]
["C3.1","a",1,1]
["C3.2","b",1,1]

{"sheet":"Punkteauswertung","index":1,"n_rows":44,"n_cols":36,"rows_kept":44,"cut":false,"hidden":false,"merged":[]}
[]
[]
[]
[]
[]
[]
[]
[]
[]
[null,null,"Auswertung Nr.",1,2,3,4,5,6,7,8,9,10,11,12,13,14,15,16,17,18,19,20,21,22,23,24,25,26,27,28,29,30,31,32,33]
[null,null,"Name",{"$f":"IF(Dokumentenauswertung!E11=\"\",\"\",Dokumentenauswertung!E11)","v":""},{"$f":"IF(Dokumentenauswertung!F11=\"\",\"\",Dokumentenauswertung!F11)","v":""},{"$f":"IF(Dokumentenauswertung!G11=\"\",\"\",Dokumentenauswertung!G11)","v":""},{"$f":"IF(Dokumentenauswertung!H11=\"\",\"\",Dokumentenauswertung!H11)","v":""},{"$f":"IF(Dokumentenauswertung!I11=\"\",\"\",Dokumentenauswertung!I11)","v":""},{"$f":"IF(Dokumentenauswertung!J11=\"\",\"\",Dokumentenauswertung!J11)","v":""},{"$f":"IF(Dokumentenauswertung!K11=\"\",\"\",Dokumentenauswertung!K11)","v":""},{"$f":"IF(Dokumentenauswertung!L11=\"\",\"\",Dokumentenauswertung!L11)","v":""},{"$f":"IF(Dokumentenauswertung!M11=\"\",\"\",Dokumentenauswertung!M11)","v":""},{"$f":"IF(Dokumentenauswertung!N11=\"\",\"\",Dokumentenauswertung!N11)","v":""},{"$f":"IF(Dokumentenauswertung!O11=\"\",\"\",Dokumentenauswertung!O11)","v":""},{"$f":"IF(Dokumentenauswertung!P11=\"\",\"\",Dokumentenauswertung!P11)","v":""},{"$f":"IF(Dokumentenauswertung!Q11=\"\",\"\",Dokumentenauswertung!Q11)","v":""},{"$f":"IF(Dokumentenauswertung!R11=\"\",\"\",Dokumentenauswertung!R11)","v":""},{"$f":"IF(Dokumentenauswertung!S11=\"\",\"\",Dokumentenauswertung!S11)","v":""},{"$f":"IF(Dokumentenauswertung!T11=\"\",\"\",Dokumentenauswertung!T11)","v":""},{"$f":"IF(Dokumentenauswertung!U11=\"\",\"\",Dokumentenauswertung!U11)","v":""},{"$f":"IF(Dokumentenauswertung!V11=\"\",\"\",Dokumentenauswertung!V11)","v":""},{"$f":"IF(Dokumentenauswertung!W11=\"\",\"\",Dokumentenauswertung!W11)","v":""},{"$f":"IF(Dokumentenauswertung!X11=\"\",\"\",Dokumentenauswertung!X11)","v":""},{"$f":"IF(Dokumentenauswertung!Y11=\"\",\"\",Dokumentenauswertung!Y11)","v":""},{"$f":"IF(Dokumentenauswertung!Z11=\"\",\"\",Dokumentenauswertung!Z11)","v":""},{"$f":"IF(Dokumentenauswertung!AA11=\"\",\"\",Dokumentenauswertung!AA11)","v":""},{"$f":"IF(Dokumentenauswertung!AB11=\"\",\"\",Dokumentenauswertung!AB11)","v":""},{"$f":"IF(Dokumentenauswertung!AC11=\"\",\"\",Dokumentenauswertung!AC11)","v":""},{"$f":"IF(Dokumentenauswertung!AD11=\"\",\"\",Dokumentenauswertung!AD11)","v":""},{"$f":"IF(Dokumentenauswertung!AE11=\"\",\"\",Dokumentenauswertung!AE11)","v":""},{"$f":"IF(Dokumentenauswertung!AF11=\"\",\"\",Dokumentenauswertung!AF11)","v":""},{"$f":"IF(Dokumentenauswertung!AG11=\"\",\"\",Dokumentenauswertung!AG11)","v":""},{"$f":"IF(Dokumentenauswertung!AH11=\"\",\"\",Dokumentenauswertung!AH11)","v":""},{"$f":"IF(Dokumentenauswertung!AI11=\"\",\"\",Dokumentenauswertung!AI11)","v":""},{"$f":"IF(Dokumentenauswertung!AJ11=\"\",\"\",Dokumentenauswertung!AJ11)","v":""},{"$f":"IF(Dokumentenauswertung!AK11=\"\",\"\",Dokumentenauswertung!AK11)","v":""}]
[null,null,"Klasse",{"$f":"IF(Dokumentenauswertung!E12=\"\",\"\",Dokumentenauswertung!E12)","v":""},{"$f":"IF(Dokumentenauswertung!F12=\"\",\"\",Dokumentenauswertung!F12)","v":""},{"$f":"IF(Dokumentenauswertung!G12=\"\",\"\",Dokumentenauswertung!G12)","v":""},{"$f":"IF(Dokumentenauswertung!H12=\"\",\"\",Dokumentenauswertung!H12)","v":""},{"$f":"IF(Dokumentenauswertung!I12=\"\",\"\",Dokumentenauswertung!I12)","v":""},{"$f":"IF(Dokumentenauswertung!J12=\"\",\"\",Dokumentenauswertung!J12)","v":""},{"$f":"IF(Dokumentenauswertung!K12=\"\",\"\",Dokumentenauswertung!K12)","v":""},{"$f":"IF(Dokumentenauswertung!L12=\"\",\"\",Dokumentenauswertung!L12)","v":""},{"$f":"IF(Dokumentenauswertung!M12=\"\",\"\",Dokumentenauswertung!M12)","v":""},{"$f":"IF(Dokumentenauswertung!N12=\"\",\"\",Dokumentenauswertung!N12)","v":""},{"$f":"IF(Dokumentenauswertung!O12=\"\",\"\",Dokumentenauswertung!O12)","v":""},{"$f":"IF(Dokumentenauswertung!P12=\"\",\"\",Dokumentenauswertung!P12)","v":""},{"$f":"IF(Dokumentenauswertung!Q12=\"\",\"\",Dokumentenauswertung!Q12)","v":""},{"$f":"IF(Dokumentenauswertung!R12=\"\",\"\",Dokumentenauswertung!R12)","v":""},{"$f":"IF(Dokumentenauswertung!S12=\"\",\"\",Dokumentenauswertung!S12)","v":""},{"$f":"IF(Dokumentenauswertung!T12=\"\",\"\",Dokumentenauswertung!T12)","v":""},{"$f":"IF(Dokumentenauswertung!U12=\"\",\"\",Dokumentenauswertung!U12)","v":""},{"$f":"IF(Dokumentenauswertung!V12=\"\",\"\",Dokumentenauswertung!V12)","v":""},{"$f":"IF(Dokumentenauswertung!W12=\"\",\"\",Dokumentenauswertung!W12)","v":""},{"$f":"IF(Dokumentenauswertung!X12=\"\",\"\",Dokumentenauswertung!X12)","v":""},{"$f":"IF(Dokumentenauswertung!Y12=\"\",\"\",Dokumentenauswertung!Y12)","v":""},{"$f":"IF(Dokumentenauswertung!Z12=\"\",\"\",Dokumentenauswertung!Z12)","v":""},{"$f":"IF(Dokumentenauswertung!AA12=\"\",\"\",Dokumentenauswertung!AA12)","v":""},{"$f":"IF(Dokumentenauswertung!AB12=\"\",\"\",Dokumentenauswertung!AB12)","v":""},{"$f":"IF(Dokumentenauswertung!AC12=\"\",\"\",Dokumentenauswertung!AC12)","v":""},{"$f":"IF(Dokumentenauswertung!AD12=\"\",\"\",Dokumentenauswertung!AD12)","v":""},{"$f":"IF(Dokumentenauswertung!AE12=\"\",\"\",Dokumentenauswertung!AE12)","v":""},{"$f":"IF(Dokumentenauswertung!AF12=\"\",\"\",Dokumentenauswertung!AF12)","v":""},{"$f":"IF(Dokumentenauswertung!AG12=\"\",\"\",Dokumentenauswertung!AG12)","v":""},{"$f":"IF(Dokumentenauswertung!AH12=\"\",\"\",Dokumentenauswertung!AH12)","v":""},{"$f":"IF(Dokumentenauswertung!AI12=\"\",\"\",Dokumentenauswertung!AI12)","v":""},{"$f":"IF(Dokumentenauswertung!AJ12=\"\",\"\",Dokumentenauswertung!AJ12)","v":""},{"$f":"IF(Dokumentenauswertung!AK12=\"\",\"\",Dokumentenauswertung!AK12)","v":""}]
[null,null,"Datum",{"$f":"IF(Dokumentenauswertung!E13=\"\",\"\",Dokumentenauswertung!E13)","v":""},{"$f":"IF(Dokumentenauswertung!F13=\"\",\"\",Dokumentenauswertung!F13)","v":""},{"$f":"IF(Dokumentenauswertung!G13=\"\",\"\",Dokumentenauswertung!G13)","v":""},{"$f":"IF(Dokumentenauswertung!H13=\"\",\"\",Dokumentenauswertung!H13)","v":""},{"$f":"IF(Dokumentenauswertung!I13=\"\",\"\",Dokumentenauswertung!I13)","v":""},{"$f":"IF(Dokumentenauswertung!J13=\"\",\"\",Dokumentenauswertung!J13)","v":""},{"$f":"IF(Dokumentenauswertung!K13=\"\",\"\",Dokumentenauswertung!K13)","v":""},{"$f":"IF(Dokumentenauswertung!L13=\"\",\"\",Dokumentenauswertung!L13)","v":""},{"$f":"IF(Dokumentenauswertung!M13=\"\",\"\",Dokumentenauswertung!M13)","v":""},{"$f":"IF(Dokumentenauswertung!N13=\"\",\"\",Dokumentenauswertung!N13)","v":""},{"$f":"IF(Dokumentenauswertung!O13=\"\",\"\",Dokumentenauswertung!O13)","v":""},{"$f":"IF(Dokumentenauswertung!P13=\"\",\"\",Dokumentenauswertung!P13)","v":""},{"$f":"IF(Dokumentenauswertung!Q13=\"\",\"\",Dokumentenauswertung!Q13)","v":""},{"$f":"IF(Dokumentenauswertung!R13=\"\",\"\",Dokumentenauswertung!R13)","v":""},{"$f":"IF(Dokumentenauswertung!S13=\"\",\"\",Dokumentenauswertung!S13)","v":""},{"$f":"IF(Dokumentenauswertung!T13=\"\",\"\",Dokumentenauswertung!T13)","v":""},{"$f":"IF(Dokumentenauswertung!U13=\"\",\"\",Dokumentenauswertung!U13)","v":""},{"$f":"IF(Dokumentenauswertung!V13=\"\",\"\",Dokumentenauswertung!V13)","v":""},{"$f":"IF(Dokumentenauswertung!W13=\"\",\"\",Dokumentenauswertung!W13)","v":""},{"$f":"IF(Dokumentenauswertung!X13=\"\",\"\",Dokumentenauswertung!X13)","v":""},{"$f":"IF(Dokumentenauswertung!Y13=\"\",\"\",Dokumentenauswertung!Y13)","v":""},{"$f":"IF(Dokumentenauswertung!Z13=\"\",\"\",Dokumentenauswertung!Z13)","v":""},{"$f":"IF(Dokumentenauswertung!AA13=\"\",\"\",Dokumentenauswertung!AA13)","v":""},{"$f":"IF(Dokumentenauswertung!AB13=\"\",\"\",Dokumentenauswertung!AB13)","v":""},{"$f":"IF(Dokumentenauswertung!AC13=\"\",\"\",Dokumentenauswertung!AC13)","v":""},{"$f":"IF(Dokumentenauswertung!AD13=\"\",\"\",Dokumentenauswertung!AD13)","v":""},{"$f":"IF(Dokumentenauswertung!AE13=\"\",\"\",Dokumentenauswertung!AE13)","v":""},{"$f":"IF(Dokumentenauswertung!AF13=\"\",\"\",Dokumentenauswertung!AF13)","v":""},{"$f":"IF(Dokumentenauswertung!AG13=\"\",\"\",Dokumentenauswertung!AG13)","v":""},{"$f":"IF(Dokumentenauswertung!AH13=\"\",\"\",Dokumentenauswertung!AH13)","v":""},{"$f":"IF(Dokumentenauswertung!AI13=\"\",\"\",Dokumentenauswertung!AI13)","v":""},{"$f":"IF(Dokumentenauswertung!AJ13=\"\",\"\",Dokumentenauswertung!AJ13)","v":""},{"$f":"IF(Dokumentenauswertung!AK13=\"\",\"\",Dokumentenauswertung!AK13)","v":""}]
[null,null,{"$f":"Dokumentenauswertung!$A14","v":"A1"},{"$f":"IF(Dokumentenauswertung!E$10=\"\",\"\",IF(Dokumentenauswertung!$B14=Dokumentenauswertung!E14,Dokumentenauswertung!$C14,0))","v":""},{"$f":"IF(Dokumentenauswertung!F$10=\"\",\"\",IF(Dokumentenauswertung!$B14=Dokumentenauswertung!F14,Dokumentenauswertung!$C14,0))","v":""},{"$f":"IF(Dokumentenauswertung!G$10=\"\",\"\",IF(Dokumentenauswertung!$B14=Dokumentenauswertung!G14,Dokumentenauswertung!$C14,0))","v":""},{"$f":"IF(Dokumentenauswertung!H$10=\"\",\"\",IF(Dokumentenauswertung!$B14=Dokumentenauswertung!H14,Dokumentenauswertung!$C14,0))","v":""},{"$f":"IF(Dokumentenauswertung!I$10=\"\",\"\",IF(Dokumentenauswertung!$B14=Dokumentenauswertung!I14,Dokumentenauswertung!$C14,0))","v":""},{"$f":"IF(Dokumentenauswertung!J$10=\"\",\"\",IF(Dokumentenauswertung!$B14=Dokumentenauswertung!J14,Dokumentenauswertung!$C14,0))","v":""},{"$f":"IF(Dokumentenauswertung!K$10=\"\",\"\",IF(Dokumentenauswertung!$B14=Dokumentenauswertung!K14,Dokumentenauswertung!$C14,0))","v":""},{"$f":"IF(Dokumentenauswertung!L$10=\"\",\"\",IF(Dokumentenauswertung!$B14=Dokumentenauswertung!L14,Dokumentenauswertung!$C14,0))","v":""},{"$f":"IF(Dokumentenauswertung!M$10=\"\",\"\",IF(Dokumentenauswertung!$B14=Dokumentenauswertung!M14,Dokumentenauswertung!$C14,0))","v":""},{"$f":"IF(Dokumentenauswertung!N$10=\"\",\"\",IF(Dokumentenauswertung!$B14=Dokumentenauswertung!N14,Dokumentenauswertung!$C14,0))","v":""},{"$f":"IF(Dokumentenauswertung!O$10=\"\",\"\",IF(Dokumentenauswertung!$B14=Dokumentenauswertung!O14,Dokumentenauswertung!$C14,0))","v":""},{"$f":"IF(Dokumentenauswertung!P$10=\"\",\"\",IF(Dokumentenauswertung!$B14=Dokumentenauswertung!P14,Dokumentenauswertung!$C14,0))","v":""},{"$f":"IF(Dokumentenauswertung!Q$10=\"\",\"\",IF(Dokumentenauswertung!$B14=Dokumentenauswertung!Q14,Dokumentenauswertung!$C14,0))","v":""},{"$f":"IF(Dokumentenauswertung!R$10=\"\",\"\",IF(Dokumentenauswertung!$B14=Dokumentenauswertung!R14,Dokumentenauswertung!$C14,0))","v":""},{"$f":"IF(Dokumentenauswertung!S$10=\"\",\"\",IF(Dokumentenauswertung!$B14=Dokumentenauswertung!S14,Dokumentenauswertung!$C14,0))","v":""},{"$f":"IF(Dokumentenauswertung!T$10=\"\",\"\",IF(Dokumentenauswertung!$B14=Dokumentenauswertung!T14,Dokumentenauswertung!$C14,0))","v":""},{"$f":"IF(Dokumentenauswertung!U$10=\"\",\"\",IF(Dokumentenauswertung!$B14=Dokumentenauswertung!U14,Dokumentenauswertung!$C14,0))","v":""},{"$f":"IF(Dokumentenauswertung!V$10=\"\",\"\",IF(Dokumentenauswertung!$B14=Dokumentenauswertung!V14,Dokumentenauswertung!$C14,0))","v":""},{"$f":"IF(Dokumentenauswertung!W$10=\"\",\"\",IF(Dokumentenauswertung!$B14=Dokumentenauswertung!W14,Dokumentenauswertung!$C14,0))","v":""},{"$f":"IF(Dokumentenauswertung!X$10=\"\",\"\",IF(Dokumentenauswertung!$B14=Dokumentenauswertung!X14,Dokumentenauswertung!$C14,0))","v":""},{"$f":"IF(Dokumentenauswertung!Y$10=\"\",\"\",IF(Dokumentenauswertung!$B14=Dokumentenauswertung!Y14,Dokumentenauswertung!$C14,0))","v":""},{"$f":"IF(Dokumentenauswertung!Z$10=\"\",\"\",IF(Dokumentenauswertung!$B14=Dokumentenauswertung!Z14,Dokumentenauswertung!$C14,0))","v":""},{"$f":"IF(Dokumentenauswertung!AA$10=\"\",\"\",IF(Dokumentenauswertung!$B14=Dokumentenauswertung!AA14,Dokumentenauswertung!$C14,0))","v":""},{"$f":"IF(Dokumentenauswertung!AB$10=\"\",\"\",IF(Dokumentenauswertung!$B14=Dokumentenauswertung!AB14,Dokumentenauswertung!$C14,0))","v":""},{"$f":"IF(Dokumentenauswertung!AC$10=\"\",\"\",IF(Dokumentenauswertung!$B14=Dokumentenauswertung!AC14,Dokumentenauswertung!$C14,0))","v":""},{"$f":"IF(Dokumentenauswertung!AD$10=\"\",\"\",IF(Dokumentenauswertung!$B14=Dokumentenauswertung!AD14,Dokumentenauswertung!$C14,0))","v":""},{"$f":"IF(Dokumentenauswertung!AE$10=\"\",\"\",IF(Dokumentenauswertung!$B14=Dokumentenauswertung!AE14,Dokumentenauswertung!$C14,0))","v":""},{"$f":"IF(Dokumentenauswertung!AF$10=\"\",\"\",IF(Dokumentenauswertung!$B14=Dokumentenauswertung!AF14,Dokumentenauswertung!$C14,0))","v":""},{"$f":"IF(Dokumentenauswertung!AG$10=\"\",\"\",IF(Dokumentenauswertung!$B14=Dokumentenauswertung!AG14,Dokumentenauswertung!$C14,0))","v":""},{"$f":"IF(Dokumentenauswertung!AH$10=\"\",\"\",IF(Dokumentenauswertung!$B14=Dokumentenauswertung!AH14,Dokumentenauswertung!$C14,0))","v":""},{"$f":"IF(Dokumentenauswertung!AI$10=\"\",\"\",IF(Dokumentenauswertung!$B14=Dokumentenauswertung!AI14,Dokumentenauswertung!$C14,0))","v":""},{"$f":"IF(Dokumentenauswertung!AJ$10=\"\",\"\",IF(Dokumentenauswertung!$B14=Dokumentenauswertung!AJ14,Dokumentenauswertung!$C14,0))","v":""},{"$f":"IF(Dokumentenauswertung!AK$10=\"\",\"\",IF(Dokumentenauswertung!$B14=Dokumentenauswertung!AK14,Dokumentenauswertung!$C14,0))","v":""}]
[null,null,{"$f":"Dokumentenauswertung!$A15","v":"A2"},{"$f":"IF(Dokumentenauswertung!E$10=\"\",\"\",IF(Dokumentenauswertung!$B15=Dokumentenauswertung!E15,Dokumentenauswertung!$C15,0))","v":""},{"$f":"IF(Dokumentenauswertung!F$10=\"\",\"\",IF(Dokumentenauswertung!$B15=Dokumentenauswertung!F15,Dokumentenauswertung!$C15,0))","v":""},{"$f":"IF(Dokumentenauswertung!G$10=\"\",\"\",IF(Dokumentenauswertung!$B15=Dokumentenauswertung!G15,Dokumentenauswertung!$C15,0))","v":""},{"$f":"IF(Dokumentenauswertung!H$10=\"\",\"\",IF(Dokumentenauswertung!$B15=Dokumentenauswertung!H15,Dokumentenauswertung!$C15,0))","v":""},{"$f":"IF(Dokumentenauswertung!I$10=\"\",\"\",IF(Dokumentenauswertung!$B15=Dokumentenauswertung!I15,Dokumentenauswertung!$C15,0))","v":""},{"$f":"IF(Dokumentenauswertung!J$10=\"\",\"\",IF(Dokumentenauswertung!$B15=Dokumentenauswertung!J15,Dokumentenauswertung!$C15,0))","v":""},{"$f":"IF(Dokumentenauswertung!K$10=\"\",\"\",IF(Dokumentenauswertung!$B15=Dokumentenauswertung!K15,Dokumentenauswertung!$C15,0))","v":""},{"$f":"IF(Dokumentenauswertung!L$10=\"\",\"\",IF(Dokumentenauswertung!$B15=Dokumentenauswertung!L15,Dokumentenauswertung!$C15,0))","v":""},{"$f":"IF(Dokumentenauswertung!M$10=\"\",\"\",IF(Dokumentenauswertung!$B15=Dokumentenauswertung!M15,Dokumentenauswertung!$C15,0))","v":""},{"$f":"IF(Dokumentenauswertung!N$10=\"\",\"\",IF(Dokumentenauswertung!$B15=Dokumentenauswertung!N15,Dokumentenauswertung!$C15,0))","v":""},{"$f":"IF(Dokumentenauswertung!O$10=\"\",\"\",IF(Dokumentenauswertung!$B15=Dokumentenauswertung!O15,Dokumentenauswertung!$C15,0))","v":""},{"$f":"IF(Dokumentenauswertung!P$10=\"\",\"\",IF(Dokumentenauswertung!$B15=Dokumentenauswertung!P15,Dokumentenauswertung!$C15,0))","v":""},{"$f":"IF(Dokumentenauswertung!Q$10=\"\",\"\",IF(Dokumentenauswertung!$B15=Dokumentenauswertung!Q15,Dokumentenauswertung!$C15,0))","v":""},{"$f":"IF(Dokumentenauswertung!R$10=\"\",\"\",IF(Dokumentenauswertung!$B15=Dokumentenauswertung!R15,Dokumentenauswertung!$C15,0))","v":""},{"$f":"IF(Dokumentenauswertung!S$10=\"\",\"\",IF(Dokumentenauswertung!$B15=Dokumentenauswertung!S15,Dokumentenauswertung!$C15,0))","v":""},{"$f":"IF(Dokumentenauswertung!T$10=\"\",\"\",IF(Dokumentenauswertung!$B15=Dokumentenauswertung!T15,Dokumentenauswertung!$C15,0))","v":""},{"$f":"IF(Dokumentenauswertung!U$10=\"\",\"\",IF(Dokumentenauswertung!$B15=Dokumentenauswertung!U15,Dokumentenauswertung!$C15,0))","v":""},{"$f":"IF(Dokumentenauswertung!V$10=\"\",\"\",IF(Dokumentenauswertung!$B15=Dokumentenauswertung!V15,Dokumentenauswertung!$C15,0))","v":""},{"$f":"IF(Dokumentenauswertung!W$10=\"\",\"\",IF(Dokumentenauswertung!$B15=Dokumentenauswertung!W15,Dokumentenauswertung!$C15,0))","v":""},{"$f":"IF(Dokumentenauswertung!X$10=\"\",\"\",IF(Dokumentenauswertung!$B15=Dokumentenauswertung!X15,Dokumentenauswertung!$C15,0))","v":""},{"$f":"IF(Dokumentenauswertung!Y$10=\"\",\"\",IF(Dokumentenauswertung!$B15=Dokumentenauswertung!Y15,Dokumentenauswertung!$C15,0))","v":""},{"$f":"IF(Dokumentenauswertung!Z$10=\"\",\"\",IF(Dokumentenauswertung!$B15=Dokumentenauswertung!Z15,Dokumentenauswertung!$C15,0))","v":""},{"$f":"IF(Dokumentenauswertung!AA$10=\"\",\"\",IF(Dokumentenauswertung!$B15=Dokumentenauswertung!AA15,Dokumentenauswertung!$C15,0))","v":""},{"$f":"IF(Dokumentenauswertung!AB$10=\"\",\"\",IF(Dokumentenauswertung!$B15=Dokumentenauswertung!AB15,Dokumentenauswertung!$C15,0))","v":""},{"$f":"IF(Dokumentenauswertung!AC$10=\"\",\"\",IF(Dokumentenauswertung!$B15=Dokumentenauswertung!AC15,Dokumentenauswertung!$C15,0))","v":""},{"$f":"IF(Dokumentenauswertung!AD$10=\"\",\"\",IF(Dokumentenauswertung!$B15=Dokumentenauswertung!AD15,Dokumentenauswertung!$C15,0))","v":""},{"$f":"IF(Dokumentenauswertung!AE$10=\"\",\"\",IF(Dokumentenauswertung!$B15=Dokumentenauswertung!AE15,Dokumentenauswertung!$C15,0))","v":""},{"$f":"IF(Dokumentenauswertung!AF$10=\"\",\"\",IF(Dokumentenauswertung!$B15=Dokumentenauswertung!AF15,Dokumentenauswertung!$C15,0))","v":""},{"$f":"IF(Dokumentenauswertung!AG$10=\"\",\"\",IF(Dokumentenauswertung!$B15=Dokumentenauswertung!AG15,Dokumentenauswertung!$C15,0))","v":""},{"$f":"IF(Dokumentenauswertung!AH$10=\"\",\"\",IF(Dokumentenauswertung!$B15=Dokumentenauswertung!AH15,Dokumentenauswertung!$C15,0))","v":""},{"$f":"IF(Dokumentenauswertung!AI$10=\"\",\"\",IF(Dokumentenauswertung!$B15=Dokumentenauswertung!AI15,Dokumentenauswertung!$C15,0))","v":""},{"$f":"IF(Dokumentenauswertung!AJ$10=\"\",\"\",IF(Dokumentenauswertung!$B15=Dokumentenauswertung!AJ15,Dokumentenauswertung!$C15,0))","v":""},{"$f":"IF(Dokumentenauswertung!AK$10=\"\",\"\",IF(Dokumentenauswertung!$B15=Dokumentenauswertung!AK15,Dokumentenauswertung!$C15,0))","v":""}]
[null,null,{"$f":"Dokumentenauswertung!$A16","v":"A3.1"},{"$f":"IF(Dokumentenauswertung!E$10=\"\",\"\",IF(Dokumentenauswertung!E$16=Dokumentenauswertung!$B$16,Dokumentenauswertung!$C16,IF(Dokumentenauswertung!E$16=Dokumentenauswertung!$B$17,Dokumentenauswertung!$C16,0)))","v":""},{"$f":"IF(Dokumentenauswertung!F$10=\"\",\"\",IF(Dokumentenauswertung!F$16=Dokumentenauswertung!$B$16,Dokumentenauswertung!$C16,IF(Dokumentenauswertung!F$16=Dokumentenauswertung!$B$17,Dokumentenauswertung!$C16,0)))","v":""},{"$f":"IF(Dokumentenauswertung!G$10=\"\",\"\",IF(Dokumentenauswertung!G$16=Dokumentenauswertung!$B$16,Dokumentenauswertung!$C16,IF(Dokumentenauswertung!G$16=Dokumentenauswertung!$B$17,Dokumentenauswertung!$C16,0)))","v":""},{"$f":"IF(Dokumentenauswertung!H$10=\"\",\"\",IF(Dokumentenauswertung!H$16=Dokumentenauswertung!$B$16,Dokumentenauswertung!$C16,IF(Dokumentenauswertung!H$16=Dokumentenauswertung!$B$17,Dokumentenauswertung!$C16,0)))","v":""},{"$f":"IF(Dokumentenauswertung!I$10=\"\",\"\",IF(Dokumentenauswertung!I$16=Dokumentenauswertung!$B$16,Dokumentenauswertung!$C16,IF(Dokumentenauswertung!I$16=Dokumentenauswertung!$B$17,Dokumentenauswertung!$C16,0)))","v":""},{"$f":"IF(Dokumentenauswertung!J$10=\"\",\"\",IF(Dokumentenauswertung!J$16=Dokumentenauswertung!$B$16,Dokumentenauswertung!$C16,IF(Dokumentenauswertung!J$16=Dokumentenauswertung!$B$17,Dokumentenauswertung!$C16,0)))","v":""},{"$f":"IF(Dokumentenauswertung!K$10=\"\",\"\",IF(Dokumentenauswertung!K$16=Dokumentenauswertung!$B$16,Dokumentenauswertung!$C16,IF(Dokumentenauswertung!K$16=Dokumentenauswertung!$B$17,Dokumentenauswertung!$C16,0)))","v":""},{"$f":"IF(Dokumentenauswertung!L$10=\"\",\"\",IF(Dokumentenauswertung!L$16=Dokumentenauswertung!$B$16,Dokumentenauswertung!$C16,IF(Dokumentenauswertung!L$16=Dokumentenauswertung!$B$17,Dokumentenauswertung!$C16,0)))","v":""},{"$f":"IF(Dokumentenauswertung!M$10=\"\",\"\",IF(Dokumentenauswertung!M$16=Dokumentenauswertung!$B$16,Dokumentenauswertung!$C16,IF(Dokumentenauswertung!M$16=Dokumentenauswertung!$B$17,Dokumentenauswertung!$C16,0)))","v":""},{"$f":"IF(Dokumentenauswertung!N$10=\"\",\"\",IF(Dokumentenauswertung!N$16=Dokumentenauswertung!$B$16,Dokumentenauswertung!$C16,IF(Dokumentenauswertung!N$16=Dokumentenauswertung!$B$17,Dokumentenauswertung!$C16,0)))","v":""},{"$f":"IF(Dokumentenauswertung!O$10=\"\",\"\",IF(Dokumentenauswertung!O$16=Dokumentenauswertung!$B$16,Dokumentenauswertung!$C16,IF(Dokumentenauswertung!O$16=Dokumentenauswertung!$B$17,Dokumentenauswertung!$C16,0)))","v":""},{"$f":"IF(Dokumentenauswertung!P$10=\"\",\"\",IF(Dokumentenauswertung!P$16=Dokumentenauswertung!$B$16,Dokumentenauswertung!$C16,IF(Dokumentenauswertung!P$16=Dokumentenauswertung!$B$17,Dokumentenauswertung!$C16,0)))","v":""},{"$f":"IF(Dokumentenauswertung!Q$10=\"\",\"\",IF(Dokumentenauswertung!Q$16=Dokumentenauswertung!$B$16,Dokumentenauswertung!$C16,IF(Dokumentenauswertung!Q$16=Dokumentenauswertung!$B$17,Dokumentenauswertung!$C16,0)))","v":""},{"$f":"IF(Dokumentenauswertung!R$10=\"\",\"\",IF(Dokumentenauswertung!R$16=Dokumentenauswertung!$B$16,Dokumentenauswertung!$C16,IF(Dokumentenauswertung!R$16=Dokumentenauswertung!$B$17,Dokumentenauswertung!$C16,0)))","v":""},{"$f":"IF(Dokumentenauswertung!S$10=\"\",\"\",IF(Dokumentenauswertung!S$16=Dokumentenauswertung!$B$16,Dokumentenauswertung!$C16,IF(Dokumentenauswertung!S$16=Dokumentenauswertung!$B$17,Dokumentenauswertung!$C16,0)))","v":""},{"$f":"IF(Dokumentenauswertung!T$10=\"\",\"\",IF(Dokumentenauswertung!T$16=Dokumentenauswertung!$B$16,Dokumentenauswertung!$C16,IF(Dokumentenauswertung!T$16=Dokumentenauswertung!$B$17,Dokumentenauswertung!$C16,0)))","v":""},{"$f":"IF(Dokumentenauswertung!U$10=\"\",\"\",IF(Dokumentenauswertung!U$16=Dokumentenauswertung!$B$16,Dokumentenauswertung!$C16,IF(Dokumentenauswertung!U$16=Dokumentenauswertung!$B$17,Dokumentenauswertung!$C16,0)))","v":""},{"$f":"IF(Dokumentenauswertung!V$10=\"\",\"\",IF(Dokumentenauswertung!V$16=Dokumentenauswertung!$B$16,Dokumentenauswertung!$C16,IF(Dokumentenauswertung!V$16=Dokumentenauswertung!$B$17,Dokumentenauswertung!$C16,0)))","v":""},{"$f":"IF(Dokumentenauswertung!W$10=\"\",\"\",IF(Dokumentenauswertung!W$16=Dokumentenauswertung!$B$16,Dokumentenauswertung!$C16,IF(Dokumentenauswertung!W$16=Dokumentenauswertung!$B$17,Dokumentenauswertung!$C16,0)))","v":""},{"$f":"IF(Dokumentenauswertung!X$10=\"\",\"\",IF(Dokumentenauswertung!X$16=Dokumentenauswertung!$B$16,Dokumentenauswertung!$C16,IF(Dokumentenauswertung!X$16=Dokumentenauswertung!$B$17,Dokumentenauswertung!$C16,0)))","v":""},{"$f":"IF(Dokumentenauswertung!Y$10=\"\",\"\",IF(Dokumentenauswertung!Y$16=Dokumentenauswertung!$B$16,Dokumentenauswertung!$C16,IF(Dokumentenauswertung!Y$16=Dokumentenauswertung!$B$17,Dokumentenauswertung!$C16,0)))","v":""},{"$f":"IF(Dokumentenauswertung!Z$10=\"\",\"\",IF(Dokumentenauswertung!Z$16=Dokumentenauswertung!$B$16,Dokumentenauswertung!$C16,IF(Dokumentenauswertung!Z$16=Dokumentenauswertung!$B$17,Dokumentenauswertung!$C16,0)))","v":""},{"$f":"IF(Dokumentenauswertung!AA$10=\"\",\"\",IF(Dokumentenauswertung!AA$16=Dokumentenauswertung!$B$16,Dokumentenauswertung!$C16,IF(Dokumentenauswertung!AA$16=Dokumentenauswertung!$B$17,Dokumentenauswertung!$C16,0)))","v":""},{"$f":"IF(Dokumentenauswertung!AB$10=\"\",\"\",IF(Dokumentenauswertung!AB$16=Dokumentenauswertung!$B$16,Dokumentenauswertung!$C16,IF(Dokumentenauswertung!AB$16=Dokumentenauswertung!$B$17,Dokumentenauswertung!$C16,0)))","v":""},{"$f":"IF(Dokumentenauswertung!AC$10=\"\",\"\",IF(Dokumentenauswertung!AC$16=Dokumentenauswertung!$B$16,Dokumentenauswertung!$C16,IF(Dokumentenauswertung!AC$16=Dokumentenauswertung!$B$17,Dokumentenauswertung!$C16,0)))","v":""},{"$f":"IF(Dokumentenauswertung!AD$10=\"\",\"\",IF(Dokumentenauswertung!AD$16=Dokumentenauswertung!$B$16,Dokumentenauswertung!$C16,IF(Dokumentenauswertung!AD$16=Dokumentenauswertung!$B$17,Dokumentenauswertung!$C16,0)))","v":""},{"$f":"IF(Dokumentenauswertung!AE$10=\"\",\"\",IF(Dokumentenauswertung!AE$16=Dokumentenauswertung!$B$16,Dokumentenauswertung!$C16,IF(Dokumentenauswertung!AE$16=Dokumentenauswertung!$B$17,Dokumentenauswertung!$C16,0)))","v":""},{"$f":"IF(Dokumentenauswertung!AF$10=\"\",\"\",IF(Dokumentenauswertung!AF$16=Dokumentenauswertung!$B$16,Dokumentenauswertung!$C16,IF(Dokumentenauswertung!AF$16=Dokumentenauswertung!$B$17,Dokumentenauswertung!$C16,0)))","v":""},{"$f":"IF(Dokumentenauswertung!AG$10=\"\",\"\",IF(Dokumentenauswertung!AG$16=Dokumentenauswertung!$B$16,Dokumentenauswertung!$C16,IF(Dokumentenauswertung!AG$16=Dokumentenauswertung!$B$17,Dokumentenauswertung!$C16,0)))","v":""},{"$f":"IF(Dokumentenauswertung!AH$10=\"\",\"\",IF(Dokumentenauswertung!AH$16=Dokumentenauswertung!$B$16,Dokumentenauswertung!$C16,IF(Dokumentenauswertung!AH$16=Dokumentenauswertung!$B$17,Dokumentenauswertung!$C16,0)))","v":""},{"$f":"IF(Dokumentenauswertung!AI$10=\"\",\"\",IF(Dokumentenauswertung!AI$16=Dokumentenauswertung!$B$16,Dokumentenauswertung!$C16,IF(Dokumentenauswertung!AI$16=Dokumentenauswertung!$B$17,Dokumentenauswertung!$C16,0)))","v":""},{"$f":"IF(Dokumentenauswertung!AJ$10=\"\",\"\",IF(Dokumentenauswertung!AJ$16=Dokumentenauswertung!$B$16,Dokumentenauswertung!$C16,IF(Dokumentenauswertung!AJ$16=Dokumentenauswertung!$B$17,Dokumentenauswertung!$C16,0)))","v":""},{"$f":"IF(Dokumentenauswertung!AK$10=\"\",\"\",IF(Dokumentenauswertung!AK$16=Dokumentenauswertung!$B$16,Dokumentenauswertung!$C16,IF(Dokumentenauswertung!AK$16=Dokumentenauswertung!$B$17,Dokumentenauswertung!$C16,0)))","v":""}]
[null,null,{"$f":"Dokumentenauswertung!$A17","v":"A3.2"},{"$f":"IF(Dokumentenauswertung!E$10=\"\",\"\",IF(Dokumentenauswertung!E$17=Dokumentenauswertung!$B$17,Dokumentenauswertung!$C17,IF(Dokumentenauswertung!E$17=Dokumentenauswertung!$B$16,Dokumentenauswertung!$C17,0)))","v":""},{"$f":"IF(Dokumentenauswertung!F$10=\"\",\"\",IF(Dokumentenauswertung!F$17=Dokumentenauswertung!$B$17,Dokumentenauswertung!$C17,IF(Dokumentenauswertung!F$17=Dokumentenauswertung!$B$16,Dokumentenauswertung!$C17,0)))","v":""},{"$f":"IF(Dokumentenauswertung!G$10=\"\",\"\",IF(Dokumentenauswertung!G$17=Dokumentenauswertung!$B$17,Dokumentenauswertung!$C17,IF(Dokumentenauswertung!G$17=Dokumentenauswertung!$B$16,Dokumentenauswertung!$C17,0)))","v":""},{"$f":"IF(Dokumentenauswertung!H$10=\"\",\"\",IF(Dokumentenauswertung!H$17=Dokumentenauswertung!$B$17,Dokumentenauswertung!$C17,IF(Dokumentenauswertung!H$17=Dokumentenauswertung!$B$16,Dokumentenauswertung!$C17,0)))","v":""},{"$f":"IF(Dokumentenauswertung!I$10=\"\",\"\",IF(Dokumentenauswertung!I$17=Dokumentenauswertung!$B$17,Dokumentenauswertung!$C17,IF(Dokumentenauswertung!I$17=Dokumentenauswertung!$B$16,Dokumentenauswertung!$C17,0)))","v":""},{"$f":"IF(Dokumentenauswertung!J$10=\"\",\"\",IF(Dokumentenauswertung!J$17=Dokumentenauswertung!$B$17,Dokumentenauswertung!$C17,IF(Dokumentenauswertung!J$17=Dokumentenauswertung!$B$16,Dokumentenauswertung!$C17,0)))","v":""},{"$f":"IF(Dokumentenauswertung!K$10=\"\",\"\",IF(Dokumentenauswertung!K$17=Dokumentenauswertung!$B$17,Dokumentenauswertung!$C17,IF(Dokumentenauswertung!K$17=Dokumentenauswertung!$B$16,Dokumentenauswertung!$C17,0)))","v":""},{"$f":"IF(Dokumentenauswertung!L$10=\"\",\"\",IF(Dokumentenauswertung!L$17=Dokumentenauswertung!$B$17,Dokumentenauswertung!$C17,IF(Dokumentenauswertung!L$17=Dokumentenauswertung!$B$16,Dokumentenauswertung!$C17,0)))","v":""},{"$f":"IF(Dokumentenauswertung!M$10=\"\",\"\",IF(Dokumentenauswertung!M$17=Dokumentenauswertung!$B$17,Dokumentenauswertung!$C17,IF(Dokumentenauswertung!M$17=Dokumentenauswertung!$B$16,Dokumentenauswertung!$C17,0)))","v":""},{"$f":"IF(Dokumentenauswertung!N$10=\"\",\"\",IF(Dokumentenauswertung!N$17=Dokumentenauswertung!$B$17,Dokumentenauswertung!$C17,IF(Dokumentenauswertung!N$17=Dokumentenauswertung!$B$16,Dokumentenauswertung!$C17,0)))","v":""},{"$f":"IF(Dokumentenauswertung!O$10=\"\",\"\",IF(Dokumentenauswertung!O$17=Dokumentenauswertung!$B$17,Dokumentenauswertung!$C17,IF(Dokumentenauswertung!O$17=Dokumentenauswertung!$B$16,Dokumentenauswertung!$C17,0)))","v":""},{"$f":"IF(Dokumentenauswertung!P$10=\"\",\"\",IF(Dokumentenauswertung!P$17=Dokumentenauswertung!$B$17,Dokumentenauswertung!$C17,IF(Dokumentenauswertung!P$17=Dokumentenauswertung!$B$16,Dokumentenauswertung!$C17,0)))","v":""},{"$f":"IF(Dokumentenauswertung!Q$10=\"\",\"\",IF(Dokumentenauswertung!Q$17=Dokumentenauswertung!$B$17,Dokumentenauswertung!$C17,IF(Dokumentenauswertung!Q$17=Dokumentenauswertung!$B$16,Dokumentenauswertung!$C17,0)))","v":""},{"$f":"IF(Dokumentenauswertung!R$10=\"\",\"\",IF(Dokumentenauswertung!R$17=Dokumentenauswertung!$B$17,Dokumentenauswertung!$C17,IF(Dokumentenauswertung!R$17=Dokumentenauswertung!$B$16,Dokumentenauswertung!$C17,0)))","v":""},{"$f":"IF(Dokumentenauswertung!S$10=\"\",\"\",IF(Dokumentenauswertung!S$17=Dokumentenauswertung!$B$17,Dokumentenauswertung!$C17,IF(Dokumentenauswertung!S$17=Dokumentenauswertung!$B$16,Dokumentenauswertung!$C17,0)))","v":""},{"$f":"IF(Dokumentenauswertung!T$10=\"\",\"\",IF(Dokumentenauswertung!T$17=Dokumentenauswertung!$B$17,Dokumentenauswertung!$C17,IF(Dokumentenauswertung!T$17=Dokumentenauswertung!$B$16,Dokumentenauswertung!$C17,0)))","v":""},{"$f":"IF(Dokumentenauswertung!U$10=\"\",\"\",IF(Dokumentenauswertung!U$17=Dokumentenauswertung!$B$17,Dokumentenauswertung!$C17,IF(Dokumentenauswertung!U$17=Dokumentenauswertung!$B$16,Dokumentenauswertung!$C17,0)))","v":""},{"$f":"IF(Dokumentenauswertung!V$10=\"\",\"\",IF(Dokumentenauswertung!V$17=Dokumentenauswertung!$B$17,Dokumentenauswertung!$C17,IF(Dokumentenauswertung!V$17=Dokumentenauswertung!$B$16,Dokumentenauswertung!$C17,0)))","v":""},{"$f":"IF(Dokumentenauswertung!W$10=\"\",\"\",IF(Dokumentenauswertung!W$17=Dokumentenauswertung!$B$17,Dokumentenauswertung!$C17,IF(Dokumentenauswertung!W$17=Dokumentenauswertung!$B$16,Dokumentenauswertung!$C17,0)))","v":""},{"$f":"IF(Dokumentenauswertung!X$10=\"\",\"\",IF(Dokumentenauswertung!X$17=Dokumentenauswertung!$B$17,Dokumentenauswertung!$C17,IF(Dokumentenauswertung!X$17=Dokumentenauswertung!$B$16,Dokumentenauswertung!$C17,0)))","v":""},{"$f":"IF(Dokumentenauswertung!Y$10=\"\",\"\",IF(Dokumentenauswertung!Y$17=Dokumentenauswertung!$B$17,Dokumentenauswertung!$C17,IF(Dokumentenauswertung!Y$17=Dokumentenauswertung!$B$16,Dokumentenauswertung!$C17,0)))","v":""},{"$f":"IF(Dokumentenauswertung!Z$10=\"\",\"\",IF(Dokumentenauswertung!Z$17=Dokumentenauswertung!$B$17,Dokumentenauswertung!$C17,IF(Dokumentenauswertung!Z$17=Dokumentenauswertung!$B$16,Dokumentenauswertung!$C17,0)))","v":""},{"$f":"IF(Dokumentenauswertung!AA$10=\"\",\"\",IF(Dokumentenauswertung!AA$17=Dokumentenauswertung!$B$17,Dokumentenauswertung!$C17,IF(Dokumentenauswertung!AA$17=Dokumentenauswertung!$B$16,Dokumentenauswertung!$C17,0)))","v":""},{"$f":"IF(Dokumentenauswertung!AB$10=\"\",\"\",IF(Dokumentenauswertung!AB$17=Dokumentenauswertung!$B$17,Dokumentenauswertung!$C17,IF(Dokumentenauswertung!AB$17=Dokumentenauswertung!$B$16,Dokumentenauswertung!$C17,0)))","v":""},{"$f":"IF(Dokumentenauswertung!AC$10=\"\",\"\",IF(Dokumentenauswertung!AC$17=Dokumentenauswertung!$B$17,Dokumentenauswertung!$C17,IF(Dokumentenauswertung!AC$17=Dokumentenauswertung!$B$16,Dokumentenauswertung!$C17,0)))","v":""},{"$f":"IF(Dokumentenauswertung!AD$10=\"\",\"\",IF(Dokumentenauswertung!AD$17=Dokumentenauswertung!$B$17,Dokumentenauswertung!$C17,IF(Dokumentenauswertung!AD$17=Dokumentenauswertung!$B$16,Dokumentenauswertung!$C17,0)))","v":""},{"$f":"IF(Dokumentenauswertung!AE$10=\"\",\"\",IF(Dokumentenauswertung!AE$17=Dokumentenauswertung!$B$17,Dokumentenauswertung!$C17,IF(Dokumentenauswertung!AE$17=Dokumentenauswertung!$B$16,Dokumentenauswertung!$C17,0)))","v":""},{"$f":"IF(Dokumentenauswertung!AF$10=\"\",\"\",IF(Dokumentenauswertung!AF$17=Dokumentenauswertung!$B$17,Dokumentenauswertung!$C17,IF(Dokumentenauswertung!AF$17=Dokumentenauswertung!$B$16,Dokumentenauswertung!$C17,0)))","v":""},{"$f":"IF(Dokumentenauswertung!AG$10=\"\",\"\",IF(Dokumentenauswertung!AG$17=Dokumentenauswertung!$B$17,Dokumentenauswertung!$C17,IF(Dokumentenauswertung!AG$17=Dokumentenauswertung!$B$16,Dokumentenauswertung!$C17,0)))","v":""},{"$f":"IF(Dokumentenauswertung!AH$10=\"\",\"\",IF(Dokumentenauswertung!AH$17=Dokumentenauswertung!$B$17,Dokumentenauswertung!$C17,IF(Dokumentenauswertung!AH$17=Dokumentenauswertung!$B$16,Dokumentenauswertung!$C17,0)))","v":""},{"$f":"IF(Dokumentenauswertung!AI$10=\"\",\"\",IF(Dokumentenauswertung!AI$17=Dokumentenauswertung!$B$17,Dokumentenauswertung!$C17,IF(Dokumentenauswertung!AI$17=Dokumentenauswertung!$B$16,Dokumentenauswertung!$C17,0)))","v":""},{"$f":"IF(Dokumentenauswertung!AJ$10=\"\",\"\",IF(Dokumentenauswertung!AJ$17=Dokumentenauswertung!$B$17,Dokumentenauswertung!$C17,IF(Dokumentenauswertung!AJ$17=Dokumentenauswertung!$B$16,Dokumentenauswertung!$C17,0)))","v":""},{"$f":"IF(Dokumentenauswertung!AK$10=\"\",\"\",IF(Dokumentenauswertung!AK$17=Dokumentenauswertung!$B$17,Dokumentenauswertung!$C17,IF(Dokumentenauswertung!AK$17=Dokumentenauswertung!$B$16,Dokumentenauswertung!$C17,0)))","v":""}]
[null,null,{"$f":"Dokumentenauswertung!$A18","v":"A4"},{"$f":"IF(Dokumentenauswertung!E$10=\"\",\"\",IF(Dokumentenauswertung!$B18=Dokumentenauswertung!E18,Dokumentenauswertung!$C18,0))","v":""},{"$f":"IF(Dokumentenauswertung!F$10=\"\",\"\",IF(Dokumentenauswertung!$B18=Dokumentenauswertung!F18,Dokumentenauswertung!$C18,0))","v":""},{"$f":"IF(Dokumentenauswertung!G$10=\"\",\"\",IF(Dokumentenauswertung!$B18=Dokumentenauswertung!G18,Dokumentenauswertung!$C18,0))","v":""},{"$f":"IF(Dokumentenauswertung!H$10=\"\",\"\",IF(Dokumentenauswertung!$B18=Dokumentenauswertung!H18,Dokumentenauswertung!$C18,0))","v":""},{"$f":"IF(Dokumentenauswertung!I$10=\"\",\"\",IF(Dokumentenauswertung!$B18=Dokumentenauswertung!I18,Dokumentenauswertung!$C18,0))","v":""},{"$f":"IF(Dokumentenauswertung!J$10=\"\",\"\",IF(Dokumentenauswertung!$B18=Dokumentenauswertung!J18,Dokumentenauswertung!$C18,0))","v":""},{"$f":"IF(Dokumentenauswertung!K$10=\"\",\"\",IF(Dokumentenauswertung!$B18=Dokumentenauswertung!K18,Dokumentenauswertung!$C18,0))","v":""},{"$f":"IF(Dokumentenauswertung!L$10=\"\",\"\",IF(Dokumentenauswertung!$B18=Dokumentenauswertung!L18,Dokumentenauswertung!$C18,0))","v":""},{"$f":"IF(Dokumentenauswertung!M$10=\"\",\"\",IF(Dokumentenauswertung!$B18=Dokumentenauswertung!M18,Dokumentenauswertung!$C18,0))","v":""},{"$f":"IF(Dokumentenauswertung!N$10=\"\",\"\",IF(Dokumentenauswertung!$B18=Dokumentenauswertung!N18,Dokumentenauswertung!$C18,0))","v":""},{"$f":"IF(Dokumentenauswertung!O$10=\"\",\"\",IF(Dokumentenauswertung!$B18=Dokumentenauswertung!O18,Dokumentenauswertung!$C18,0))","v":""},{"$f":"IF(Dokumentenauswertung!P$10=\"\",\"\",IF(Dokumentenauswertung!$B18=Dokumentenauswertung!P18,Dokumentenauswertung!$C18,0))","v":""},{"$f":"IF(Dokumentenauswertung!Q$10=\"\",\"\",IF(Dokumentenauswertung!$B18=Dokumentenauswertung!Q18,Dokumentenauswertung!$C18,0))","v":""},{"$f":"IF(Dokumentenauswertung!R$10=\"\",\"\",IF(Dokumentenauswertung!$B18=Dokumentenauswertung!R18,Dokumentenauswertung!$C18,0))","v":""},{"$f":"IF(Dokumentenauswertung!S$10=\"\",\"\",IF(Dokumentenauswertung!$B18=Dokumentenauswertung!S18,Dokumentenauswertung!$C18,0))","v":""},{"$f":"IF(Dokumentenauswertung!T$10=\"\",\"\",IF(Dokumentenauswertung!$B18=Dokumentenauswertung!T18,Dokumentenauswertung!$C18,0))","v":""},{"$f":"IF(Dokumentenauswertung!U$10=\"\",\"\",IF(Dokumentenauswertung!$B18=Dokumentenauswertung!U18,Dokumentenauswertung!$C18,0))","v":""},{"$f":"IF(Dokumentenauswertung!V$10=\"\",\"\",IF(Dokumentenauswertung!$B18=Dokumentenauswertung!V18,Dokumentenauswertung!$C18,0))","v":""},{"$f":"IF(Dokumentenauswertung!W$10=\"\",\"\",IF(Dokumentenauswertung!$B18=Dokumentenauswertung!W18,Dokumentenauswertung!$C18,0))","v":""},{"$f":"IF(Dokumentenauswertung!X$10=\"\",\"\",IF(Dokumentenauswertung!$B18=Dokumentenauswertung!X18,Dokumentenauswertung!$C18,0))","v":""},{"$f":"IF(Dokumentenauswertung!Y$10=\"\",\"\",IF(Dokumentenauswertung!$B18=Dokumentenauswertung!Y18,Dokumentenauswertung!$C18,0))","v":""},{"$f":"IF(Dokumentenauswertung!Z$10=\"\",\"\",IF(Dokumentenauswertung!$B18=Dokumentenauswertung!Z18,Dokumentenauswertung!$C18,0))","v":""},{"$f":"IF(Dokumentenauswertung!AA$10=\"\",\"\",IF(Dokumentenauswertung!$B18=Dokumentenauswertung!AA18,Dokumentenauswertung!$C18,0))","v":""},{"$f":"IF(Dokumentenauswertung!AB$10=\"\",\"\",IF(Dokumentenauswertung!$B18=Dokumentenauswertung!AB18,Dokumentenauswertung!$C18,0))","v":""},{"$f":"IF(Dokumentenauswertung!AC$10=\"\",\"\",IF(Dokumentenauswertung!$B18=Dokumentenauswertung!AC18,Dokumentenauswertung!$C18,0))","v":""},{"$f":"IF(Dokumentenauswertung!AD$10=\"\",\"\",IF(Dokumentenauswertung!$B18=Dokumentenauswertung!AD18,Dokumentenauswertung!$C18,0))","v":""},{"$f":"IF(Dokumentenauswertung!AE$10=\"\",\"\",IF(Dokumentenauswertung!$B18=Dokumentenauswertung!AE18,Dokumentenauswertung!$C18,0))","v":""},{"$f":"IF(Dokumentenauswertung!AF$10=\"\",\"\",IF(Dokumentenauswertung!$B18=Dokumentenauswertung!AF18,Dokumentenauswertung!$C18,0))","v":""},{"$f":"IF(Dokumentenauswertung!AG$10=\"\",\"\",IF(Dokumentenauswertung!$B18=Dokumentenauswertung!AG18,Dokumentenauswertung!$C18,0))","v":""},{"$f":"IF(Dokumentenauswertung!AH$10=\"\",\"\",IF(Dokumentenauswertung!$B18=Dokumentenauswertung!AH18,Dokumentenauswertung!$C18,0))","v":""},{"$f":"IF(Dokumentenauswertung!AI$10=\"\",\"\",IF(Dokumentenauswertung!$B18=Dokumentenauswertung!AI18,Dokumentenauswertung!$C18,0))","v":""},{"$f":"IF(Dokumentenauswertung!AJ$10=\"\",\"\",IF(Dokumentenauswertung!$B18=Dokumentenauswertung!AJ18,Dokumentenauswertung!$C18,0))","v":""},{"$f":"IF(Dokumentenauswertung!AK$10=\"\",\"\",IF(Dokumentenauswertung!$B18=Dokumentenauswertung!AK18,Dokumentenauswertung!$C18,0))","v":""}]
[null,null,{"$f":"Dokumentenauswertung!$A19","v":"A5.1"},{"$f":"IF(Dokumentenauswertung!E$10=\"\",\"\",IF(Dokumentenauswertung!E$19=Dokumentenauswertung!$B$19,Dokumentenauswertung!$C19,IF(Dokumentenauswertung!E$19=Dokumentenauswertung!$B$20,Dokumentenauswertung!$C$19,0)))","v":""},{"$f":"IF(Dokumentenauswertung!F$10=\"\",\"\",IF(Dokumentenauswertung!F$19=Dokumentenauswertung!$B$19,Dokumentenauswertung!$C19,IF(Dokumentenauswertung!F$19=Dokumentenauswertung!$B$20,Dokumentenauswertung!$C$19,0)))","v":""},{"$f":"IF(Dokumentenauswertung!G$10=\"\",\"\",IF(Dokumentenauswertung!G$19=Dokumentenauswertung!$B$19,Dokumentenauswertung!$C19,IF(Dokumentenauswertung!G$19=Dokumentenauswertung!$B$20,Dokumentenauswertung!$C$19,0)))","v":""},{"$f":"IF(Dokumentenauswertung!H$10=\"\",\"\",IF(Dokumentenauswertung!H$19=Dokumentenauswertung!$B$19,Dokumentenauswertung!$C19,IF(Dokumentenauswertung!H$19=Dokumentenauswertung!$B$20,Dokumentenauswertung!$C$19,0)))","v":""},{"$f":"IF(Dokumentenauswertung!I$10=\"\",\"\",IF(Dokumentenauswertung!I$19=Dokumentenauswertung!$B$19,Dokumentenauswertung!$C19,IF(Dokumentenauswertung!I$19=Dokumentenauswertung!$B$20,Dokumentenauswertung!$C$19,0)))","v":""},{"$f":"IF(Dokumentenauswertung!J$10=\"\",\"\",IF(Dokumentenauswertung!J$19=Dokumentenauswertung!$B$19,Dokumentenauswertung!$C19,IF(Dokumentenauswertung!J$19=Dokumentenauswertung!$B$20,Dokumentenauswertung!$C$19,0)))","v":""},{"$f":"IF(Dokumentenauswertung!K$10=\"\",\"\",IF(Dokumentenauswertung!K$19=Dokumentenauswertung!$B$19,Dokumentenauswertung!$C19,IF(Dokumentenauswertung!K$19=Dokumentenauswertung!$B$20,Dokumentenauswertung!$C$19,0)))","v":""},{"$f":"IF(Dokumentenauswertung!L$10=\"\",\"\",IF(Dokumentenauswertung!L$19=Dokumentenauswertung!$B$19,Dokumentenauswertung!$C19,IF(Dokumentenauswertung!L$19=Dokumentenauswertung!$B$20,Dokumentenauswertung!$C$19,0)))","v":""},{"$f":"IF(Dokumentenauswertung!M$10=\"\",\"\",IF(Dokumentenauswertung!M$19=Dokumentenauswertung!$B$19,Dokumentenauswertung!$C19,IF(Dokumentenauswertung!M$19=Dokumentenauswertung!$B$20,Dokumentenauswertung!$C$19,0)))","v":""},{"$f":"IF(Dokumentenauswertung!N$10=\"\",\"\",IF(Dokumentenauswertung!N$19=Dokumentenauswertung!$B$19,Dokumentenauswertung!$C19,IF(Dokumentenauswertung!N$19=Dokumentenauswertung!$B$20,Dokumentenauswertung!$C$19,0)))","v":""},{"$f":"IF(Dokumentenauswertung!O$10=\"\",\"\",IF(Dokumentenauswertung!O$19=Dokumentenauswertung!$B$19,Dokumentenauswertung!$C19,IF(Dokumentenauswertung!O$19=Dokumentenauswertung!$B$20,Dokumentenauswertung!$C$19,0)))","v":""},{"$f":"IF(Dokumentenauswertung!P$10=\"\",\"\",IF(Dokumentenauswertung!P$19=Dokumentenauswertung!$B$19,Dokumentenauswertung!$C19,IF(Dokumentenauswertung!P$19=Dokumentenauswertung!$B$20,Dokumentenauswertung!$C$19,0)))","v":""},{"$f":"IF(Dokumentenauswertung!Q$10=\"\",\"\",IF(Dokumentenauswertung!Q$19=Dokumentenauswertung!$B$19,Dokumentenauswertung!$C19,IF(Dokumentenauswertung!Q$19=Dokumentenauswertung!$B$20,Dokumentenauswertung!$C$19,0)))","v":""},{"$f":"IF(Dokumentenauswertung!R$10=\"\",\"\",IF(Dokumentenauswertung!R$19=Dokumentenauswertung!$B$19,Dokumentenauswertung!$C19,IF(Dokumentenauswertung!R$19=Dokumentenauswertung!$B$20,Dokumentenauswertung!$C$19,0)))","v":""},{"$f":"IF(Dokumentenauswertung!S$10=\"\",\"\",IF(Dokumentenauswertung!S$19=Dokumentenauswertung!$B$19,Dokumentenauswertung!$C19,IF(Dokumentenauswertung!S$19=Dokumentenauswertung!$B$20,Dokumentenauswertung!$C$19,0)))","v":""},{"$f":"IF(Dokumentenauswertung!T$10=\"\",\"\",IF(Dokumentenauswertung!T$19=Dokumentenauswertung!$B$19,Dokumentenauswertung!$C19,IF(Dokumentenauswertung!T$19=Dokumentenauswertung!$B$20,Dokumentenauswertung!$C$19,0)))","v":""},{"$f":"IF(Dokumentenauswertung!U$10=\"\",\"\",IF(Dokumentenauswertung!U$19=Dokumentenauswertung!$B$19,Dokumentenauswertung!$C19,IF(Dokumentenauswertung!U$19=Dokumentenauswertung!$B$20,Dokumentenauswertung!$C$19,0)))","v":""},{"$f":"IF(Dokumentenauswertung!V$10=\"\",\"\",IF(Dokumentenauswertung!V$19=Dokumentenauswertung!$B$19,Dokumentenauswertung!$C19,IF(Dokumentenauswertung!V$19=Dokumentenauswertung!$B$20,Dokumentenauswertung!$C$19,0)))","v":""},{"$f":"IF(Dokumentenauswertung!W$10=\"\",\"\",IF(Dokumentenauswertung!W$19=Dokumentenauswertung!$B$19,Dokumentenauswertung!$C19,IF(Dokumentenauswertung!W$19=Dokumentenauswertung!$B$20,Dokumentenauswertung!$C$19,0)))","v":""},{"$f":"IF(Dokumentenauswertung!X$10=\"\",\"\",IF(Dokumentenauswertung!X$19=Dokumentenauswertung!$B$19,Dokumentenauswertung!$C19,IF(Dokumentenauswertung!X$19=Dokumentenauswertung!$B$20,Dokumentenauswertung!$C$19,0)))","v":""},{"$f":"IF(Dokumentenauswertung!Y$10=\"\",\"\",IF(Dokumentenauswertung!Y$19=Dokumentenauswertung!$B$19,Dokumentenauswertung!$C19,IF(Dokumentenauswertung!Y$19=Dokumentenauswertung!$B$20,Dokumentenauswertung!$C$19,0)))","v":""},{"$f":"IF(Dokumentenauswertung!Z$10=\"\",\"\",IF(Dokumentenauswertung!Z$19=Dokumentenauswertung!$B$19,Dokumentenauswertung!$C19,IF(Dokumentenauswertung!Z$19=Dokumentenauswertung!$B$20,Dokumentenauswertung!$C$19,0)))","v":""},{"$f":"IF(Dokumentenauswertung!AA$10=\"\",\"\",IF(Dokumentenauswertung!AA$19=Dokumentenauswertung!$B$19,Dokumentenauswertung!$C19,IF(Dokumentenauswertung!AA$19=Dokumentenauswertung!$B$20,Dokumentenauswertung!$C$19,0)))","v":""},{"$f":"IF(Dokumentenauswertung!AB$10=\"\",\"\",IF(Dokumentenauswertung!AB$19=Dokumentenauswertung!$B$19,Dokumentenauswertung!$C19,IF(Dokumentenauswertung!AB$19=Dokumentenauswertung!$B$20,Dokumentenauswertung!$C$19,0)))","v":""},{"$f":"IF(Dokumentenauswertung!AC$10=\"\",\"\",IF(Dokumentenauswertung!AC$19=Dokumentenauswertung!$B$19,Dokumentenauswertung!$C19,IF(Dokumentenauswertung!AC$19=Dokumentenauswertung!$B$20,Dokumentenauswertung!$C$19,0)))","v":""},{"$f":"IF(Dokumentenauswertung!AD$10=\"\",\"\",IF(Dokumentenauswertung!AD$19=Dokumentenauswertung!$B$19,Dokumentenauswertung!$C19,IF(Dokumentenauswertung!AD$19=Dokumentenauswertung!$B$20,Dokumentenauswertung!$C$19,0)))","v":""},{"$f":"IF(Dokumentenauswertung!AE$10=\"\",\"\",IF(Dokumentenauswertung!AE$19=Dokumentenauswertung!$B$19,Dokumentenauswertung!$C19,IF(Dokumentenauswertung!AE$19=Dokumentenauswertung!$B$20,Dokumentenauswertung!$C$19,0)))","v":""},{"$f":"IF(Dokumentenauswertung!AF$10=\"\",\"\",IF(Dokumentenauswertung!AF$19=Dokumentenauswertung!$B$19,Dokumentenauswertung!$C19,IF(Dokumentenauswertung!AF$19=Dokumentenauswertung!$B$20,Dokumentenauswertung!$C$19,0)))","v":""},{"$f":"IF(Dokumentenauswertung!AG$10=\"\",\"\",IF(Dokumentenauswertung!AG$19=Dokumentenauswertung!$B$19,Dokumentenauswertung!$C19,IF(Dokumentenauswertung!AG$19=Dokumentenauswertung!$B$20,Dokumentenauswertung!$C$19,0)))","v":""},{"$f":"IF(Dokumentenauswertung!AH$10=\"\",\"\",IF(Dokumentenauswertung!AH$19=Dokumentenauswertung!$B$19,Dokumentenauswertung!$C19,IF(Dokumentenauswertung!AH$19=Dokumentenauswertung!$B$20,Dokumentenauswertung!$C$19,0)))","v":""},{"$f":"IF(Dokumentenauswertung!AI$10=\"\",\"\",IF(Dokumentenauswertung!AI$19=Dokumentenauswertung!$B$19,Dokumentenauswertung!$C19,IF(Dokumentenauswertung!AI$19=Dokumentenauswertung!$B$20,Dokumentenauswertung!$C$19,0)))","v":""},{"$f":"IF(Dokumentenauswertung!AJ$10=\"\",\"\",IF(Dokumentenauswertung!AJ$19=Dokumentenauswertung!$B$19,Dokumentenauswertung!$C19,IF(Dokumentenauswertung!AJ$19=Dokumentenauswertung!$B$20,Dokumentenauswertung!$C$19,0)))","v":""},{"$f":"IF(Dokumentenauswertung!AK$10=\"\",\"\",IF(Dokumentenauswertung!AK$19=Dokumentenauswertung!$B$19,Dokumentenauswertung!$C19,IF(Dokumentenauswertung!AK$19=Dokumentenauswertung!$B$20,Dokumentenauswertung!$C$19,0)))","v":""}]
[null,null,{"$f":"Dokumentenauswertung!$A20","v":"A5.2"},{"$f":"IF(Dokumentenauswertung!E$10=\"\",\"\",IF(Dokumentenauswertung!E$20=Dokumentenauswertung!$B$20,Dokumentenauswertung!$C20,IF(Dokumentenauswertung!E$20=Dokumentenauswertung!$B$19,Dokumentenauswertung!$C$20,0)))","v":""},{"$f":"IF(Dokumentenauswertung!F$10=\"\",\"\",IF(Dokumentenauswertung!F$20=Dokumentenauswertung!$B$20,Dokumentenauswertung!$C20,IF(Dokumentenauswertung!F$20=Dokumentenauswertung!$B$19,Dokumentenauswertung!$C$20,0)))","v":""},{"$f":"IF(Dokumentenauswertung!G$10=\"\",\"\",IF(Dokumentenauswertung!G$20=Dokumentenauswertung!$B$20,Dokumentenauswertung!$C20,IF(Dokumentenauswertung!G$20=Dokumentenauswertung!$B$19,Dokumentenauswertung!$C$20,0)))","v":""},{"$f":"IF(Dokumentenauswertung!H$10=\"\",\"\",IF(Dokumentenauswertung!H$20=Dokumentenauswertung!$B$20,Dokumentenauswertung!$C20,IF(Dokumentenauswertung!H$20=Dokumentenauswertung!$B$19,Dokumentenauswertung!$C$20,0)))","v":""},{"$f":"IF(Dokumentenauswertung!I$10=\"\",\"\",IF(Dokumentenauswertung!I$20=Dokumentenauswertung!$B$20,Dokumentenauswertung!$C20,IF(Dokumentenauswertung!I$20=Dokumentenauswertung!$B$19,Dokumentenauswertung!$C$20,0)))","v":""},{"$f":"IF(Dokumentenauswertung!J$10=\"\",\"\",IF(Dokumentenauswertung!J$20=Dokumentenauswertung!$B$20,Dokumentenauswertung!$C20,IF(Dokumentenauswertung!J$20=Dokumentenauswertung!$B$19,Dokumentenauswertung!$C$20,0)))","v":""},{"$f":"IF(Dokumentenauswertung!K$10=\"\",\"\",IF(Dokumentenauswertung!K$20=Dokumentenauswertung!$B$20,Dokumentenauswertung!$C20,IF(Dokumentenauswertung!K$20=Dokumentenauswertung!$B$19,Dokumentenauswertung!$C$20,0)))","v":""},{"$f":"IF(Dokumentenauswertung!L$10=\"\",\"\",IF(Dokumentenauswertung!L$20=Dokumentenauswertung!$B$20,Dokumentenauswertung!$C20,IF(Dokumentenauswertung!L$20=Dokumentenauswertung!$B$19,Dokumentenauswertung!$C$20,0)))","v":""},{"$f":"IF(Dokumentenauswertung!M$10=\"\",\"\",IF(Dokumentenauswertung!M$20=Dokumentenauswertung!$B$20,Dokumentenauswertung!$C20,IF(Dokumentenauswertung!M$20=Dokumentenauswertung!$B$19,Dokumentenauswertung!$C$20,0)))","v":""},{"$f":"IF(Dokumentenauswertung!N$10=\"\",\"\",IF(Dokumentenauswertung!N$20=Dokumentenauswertung!$B$20,Dokumentenauswertung!$C20,IF(Dokumentenauswertung!N$20=Dokumentenauswertung!$B$19,Dokumentenauswertung!$C$20,0)))","v":""},{"$f":"IF(Dokumentenauswertung!O$10=\"\",\"\",IF(Dokumentenauswertung!O$20=Dokumentenauswertung!$B$20,Dokumentenauswertung!$C20,IF(Dokumentenauswertung!O$20=Dokumentenauswertung!$B$19,Dokumentenauswertung!$C$20,0)))","v":""},{"$f":"IF(Dokumentenauswertung!P$10=\"\",\"\",IF(Dokumentenauswertung!P$20=Dokumentenauswertung!$B$20,Dokumentenauswertung!$C20,IF(Dokumentenauswertung!P$20=Dokumentenauswertung!$B$19,Dokumentenauswertung!$C$20,0)))","v":""},{"$f":"IF(Dokumentenauswertung!Q$10=\"\",\"\",IF(Dokumentenauswertung!Q$20=Dokumentenauswertung!$B$20,Dokumentenauswertung!$C20,IF(Dokumentenauswertung!Q$20=Dokumentenauswertung!$B$19,Dokumentenauswertung!$C$20,0)))","v":""},{"$f":"IF(Dokumentenauswertung!R$10=\"\",\"\",IF(Dokumentenauswertung!R$20=Dokumentenauswertung!$B$20,Dokumentenauswertung!$C20,IF(Dokumentenauswertung!R$20=Dokumentenauswertung!$B$19,Dokumentenauswertung!$C$20,0)))","v":""},{"$f":"IF(Dokumentenauswertung!S$10=\"\",\"\",IF(Dokumentenauswertung!S$20=Dokumentenauswertung!$B$20,Dokumentenauswertung!$C20,IF(Dokumentenauswertung!S$20=Dokumentenauswertung!$B$19,Dokumentenauswertung!$C$20,0)))","v":""},{"$f":"IF(Dokumentenauswertung!T$10=\"\",\"\",IF(Dokumentenauswertung!T$20=Dokumentenauswertung!$B$20,Dokumentenauswertung!$C20,IF(Dokumentenauswertung!T$20=Dokumentenauswertung!$B$19,Dokumentenauswertung!$C$20,0)))","v":""},{"$f":"IF(Dokumentenauswertung!U$10=\"\",\"\",IF(Dokumentenauswertung!U$20=Dokumentenauswertung!$B$20,Dokumentenauswertung!$C20,IF(Dokumentenauswertung!U$20=Dokumentenauswertung!$B$19,Dokumentenauswertung!$C$20,0)))","v":""},{"$f":"IF(Dokumentenauswertung!V$10=\"\",\"\",IF(Dokumentenauswertung!V$20=Dokumentenauswertung!$B$20,Dokumentenauswertung!$C20,IF(Dokumentenauswertung!V$20=Dokumentenauswertung!$B$19,Dokumentenauswertung!$C$20,0)))","v":""},{"$f":"IF(Dokumentenauswertung!W$10=\"\",\"\",IF(Dokumentenauswertung!W$20=Dokumentenauswertung!$B$20,Dokumentenauswertung!$C20,IF(Dokumentenauswertung!W$20=Dokumentenauswertung!$B$19,Dokumentenauswertung!$C$20,0)))","v":""},{"$f":"IF(Dokumentenauswertung!X$10=\"\",\"\",IF(Dokumentenauswertung!X$20=Dokumentenauswertung!$B$20,Dokumentenauswertung!$C20,IF(Dokumentenauswertung!X$20=Dokumentenauswertung!$B$19,Dokumentenauswertung!$C$20,0)))","v":""},{"$f":"IF(Dokumentenauswertung!Y$10=\"\",\"\",IF(Dokumentenauswertung!Y$20=Dokumentenauswertung!$B$20,Dokumentenauswertung!$C20,IF(Dokumentenauswertung!Y$20=Dokumentenauswertung!$B$19,Dokumentenauswertung!$C$20,0)))","v":""},{"$f":"IF(Dokumentenauswertung!Z$10=\"\",\"\",IF(Dokumentenauswertung!Z$20=Dokumentenauswertung!$B$20,Dokumentenauswertung!$C20,IF(Dokumentenauswertung!Z$20=Dokumentenauswertung!$B$19,Dokumentenauswertung!$C$20,0)))","v":""},{"$f":"IF(Dokumentenauswertung!AA$10=\"\",\"\",IF(Dokumentenauswertung!AA$20=Dokumentenauswertung!$B$20,Dokumentenauswertung!$C20,IF(Dokumentenauswertung!AA$20=Dokumentenauswertung!$B$19,Dokumentenauswertung!$C$20,0)))","v":""},{"$f":"IF(Dokumentenauswertung!AB$10=\"\",\"\",IF(Dokumentenauswertung!AB$20=Dokumentenauswertung!$B$20,Dokumentenauswertung!$C20,IF(Dokumentenauswertung!AB$20=Dokumentenauswertung!$B$19,Dokumentenauswertung!$C$20,0)))","v":""},{"$f":"IF(Dokumentenauswertung!AC$10=\"\",\"\",IF(Dokumentenauswertung!AC$20=Dokumentenauswertung!$B$20,Dokumentenauswertung!$C20,IF(Dokumentenauswertung!AC$20=Dokumentenauswertung!$B$19,Dokumentenauswertung!$C$20,0)))","v":""},{"$f":"IF(Dokumentenauswertung!AD$10=\"\",\"\",IF(Dokumentenauswertung!AD$20=Dokumentenauswertung!$B$20,Dokumentenauswertung!$C20,IF(Dokumentenauswertung!AD$20=Dokumentenauswertung!$B$19,Dokumentenauswertung!$C$20,0)))","v":""},{"$f":"IF(Dokumentenauswertung!AE$10=\"\",\"\",IF(Dokumentenauswertung!AE$20=Dokumentenauswertung!$B$20,Dokumentenauswertung!$C20,IF(Dokumentenauswertung!AE$20=Dokumentenauswertung!$B$19,Dokumentenauswertung!$C$20,0)))","v":""},{"$f":"IF(Dokumentenauswertung!AF$10=\"\",\"\",IF(Dokumentenauswertung!AF$20=Dokumentenauswertung!$B$20,Dokumentenauswertung!$C20,IF(Dokumentenauswertung!AF$20=Dokumentenauswertung!$B$19,Dokumentenauswertung!$C$20,0)))","v":""},{"$f":"IF(Dokumentenauswertung!AG$10=\"\",\"\",IF(Dokumentenauswertung!AG$20=Dokumentenauswertung!$B$20,Dokumentenauswertung!$C20,IF(Dokumentenauswertung!AG$20=Dokumentenauswertung!$B$19,Dokumentenauswertung!$C$20,0)))","v":""},{"$f":"IF(Dokumentenauswertung!AH$10=\"\",\"\",IF(Dokumentenauswertung!AH$20=Dokumentenauswertung!$B$20,Dokumentenauswertung!$C20,IF(Dokumentenauswertung!AH$20=Dokumentenauswertung!$B$19,Dokumentenauswertung!$C$20,0)))","v":""},{"$f":"IF(Dokumentenauswertung!AI$10=\"\",\"\",IF(Dokumentenauswertung!AI$20=Dokumentenauswertung!$B$20,Dokumentenauswertung!$C20,IF(Dokumentenauswertung!AI$20=Dokumentenauswertung!$B$19,Dokumentenauswertung!$C$20,0)))","v":""},{"$f":"IF(Dokumentenauswertung!AJ$10=\"\",\"\",IF(Dokumentenauswertung!AJ$20=Dokumentenauswertung!$B$20,Dokumentenauswertung!$C20,IF(Dokumentenauswertung!AJ$20=Dokumentenauswertung!$B$19,Dokumentenauswertung!$C$20,0)))","v":""},{"$f":"IF(Dokumentenauswertung!AK$10=\"\",\"\",IF(Dokumentenauswertung!AK$20=Dokumentenauswertung!$B$20,Dokumentenauswertung!$C20,IF(Dokumentenauswertung!AK$20=Dokumentenauswertung!$B$19,Dokumentenauswertung!$C$20,0)))","v":""}]
[null,null,{"$f":"Dokumentenauswertung!$A21","v":"B1"},{"$f":"IF(Dokumentenauswertung!E$10=\"\",\"\",IF(ISNUMBER(Dokumentenauswertung!E21)=FALSE,\"noch nicht bewertet\",IF(Dokumentenauswertung!E21>Dokumentenauswertung!$C21,\"max. Punkte überschritten\",Dokumentenauswertung!E21)))","v":""},{"$f":"IF(Dokumentenauswertung!F$10=\"\",\"\",IF(ISNUMBER(Dokumentenauswertung!F21)=FALSE,\"noch nicht bewertet\",IF(Dokumentenauswertung!F21>Dokumentenauswertung!$C21,\"max. Punkte überschritten\",Dokumentenauswertung!F21)))","v":""},{"$f":"IF(Dokumentenauswertung!G$10=\"\",\"\",IF(ISNUMBER(Dokumentenauswertung!G21)=FALSE,\"noch nicht bewertet\",IF(Dokumentenauswertung!G21>Dokumentenauswertung!$C21,\"max. Punkte überschritten\",Dokumentenauswertung!G21)))","v":""},{"$f":"IF(Dokumentenauswertung!H$10=\"\",\"\",IF(ISNUMBER(Dokumentenauswertung!H21)=FALSE,\"noch nicht bewertet\",IF(Dokumentenauswertung!H21>Dokumentenauswertung!$C21,\"max. Punkte überschritten\",Dokumentenauswertung!H21)))","v":""},{"$f":"IF(Dokumentenauswertung!I$10=\"\",\"\",IF(ISNUMBER(Dokumentenauswertung!I21)=FALSE,\"noch nicht bewertet\",IF(Dokumentenauswertung!I21>Dokumentenauswertung!$C21,\"max. Punkte überschritten\",Dokumentenauswertung!I21)))","v":""},{"$f":"IF(Dokumentenauswertung!J$10=\"\",\"\",IF(ISNUMBER(Dokumentenauswertung!J21)=FALSE,\"noch nicht bewertet\",IF(Dokumentenauswertung!J21>Dokumentenauswertung!$C21,\"max. Punkte überschritten\",Dokumentenauswertung!J21)))","v":""},{"$f":"IF(Dokumentenauswertung!K$10=\"\",\"\",IF(ISNUMBER(Dokumentenauswertung!K21)=FALSE,\"noch nicht bewertet\",IF(Dokumentenauswertung!K21>Dokumentenauswertung!$C21,\"max. Punkte überschritten\",Dokumentenauswertung!K21)))","v":""},{"$f":"IF(Dokumentenauswertung!L$10=\"\",\"\",IF(ISNUMBER(Dokumentenauswertung!L21)=FALSE,\"noch nicht bewertet\",IF(Dokumentenauswertung!L21>Dokumentenauswertung!$C21,\"max. Punkte überschritten\",Dokumentenauswertung!L21)))","v":""},{"$f":"IF(Dokumentenauswertung!M$10=\"\",\"\",IF(ISNUMBER(Dokumentenauswertung!M21)=FALSE,\"noch nicht bewertet\",IF(Dokumentenauswertung!M21>Dokumentenauswertung!$C21,\"max. Punkte überschritten\",Dokumentenauswertung!M21)))","v":""},{"$f":"IF(Dokumentenauswertung!N$10=\"\",\"\",IF(ISNUMBER(Dokumentenauswertung!N21)=FALSE,\"noch nicht bewertet\",IF(Dokumentenauswertung!N21>Dokumentenauswertung!$C21,\"max. Punkte überschritten\",Dokumentenauswertung!N21)))","v":""},{"$f":"IF(Dokumentenauswertung!O$10=\"\",\"\",IF(ISNUMBER(Dokumentenauswertung!O21)=FALSE,\"noch nicht bewertet\",IF(Dokumentenauswertung!O21>Dokumentenauswertung!$C21,\"max. Punkte überschritten\",Dokumentenauswertung!O21)))","v":""},{"$f":"IF(Dokumentenauswertung!P$10=\"\",\"\",IF(ISNUMBER(Dokumentenauswertung!P21)=FALSE,\"noch nicht bewertet\",IF(Dokumentenauswertung!P21>Dokumentenauswertung!$C21,\"max. Punkte überschritten\",Dokumentenauswertung!P21)))","v":""},{"$f":"IF(Dokumentenauswertung!Q$10=\"\",\"\",IF(ISNUMBER(Dokumentenauswertung!Q21)=FALSE,\"noch nicht bewertet\",IF(Dokumentenauswertung!Q21>Dokumentenauswertung!$C21,\"max. Punkte überschritten\",Dokumentenauswertung!Q21)))","v":""},{"$f":"IF(Dokumentenauswertung!R$10=\"\",\"\",IF(ISNUMBER(Dokumentenauswertung!R21)=FALSE,\"noch nicht bewertet\",IF(Dokumentenauswertung!R21>Dokumentenauswertung!$C21,\"max. Punkte überschritten\",Dokumentenauswertung!R21)))","v":""},{"$f":"IF(Dokumentenauswertung!S$10=\"\",\"\",IF(ISNUMBER(Dokumentenauswertung!S21)=FALSE,\"noch nicht bewertet\",IF(Dokumentenauswertung!S21>Dokumentenauswertung!$C21,\"max. Punkte überschritten\",Dokumentenauswertung!S21)))","v":""},{"$f":"IF(Dokumentenauswertung!T$10=\"\",\"\",IF(ISNUMBER(Dokumentenauswertung!T21)=FALSE,\"noch nicht bewertet\",IF(Dokumentenauswertung!T21>Dokumentenauswertung!$C21,\"max. Punkte überschritten\",Dokumentenauswertung!T21)))","v":""},{"$f":"IF(Dokumentenauswertung!U$10=\"\",\"\",IF(ISNUMBER(Dokumentenauswertung!U21)=FALSE,\"noch nicht bewertet\",IF(Dokumentenauswertung!U21>Dokumentenauswertung!$C21,\"max. Punkte überschritten\",Dokumentenauswertung!U21)))","v":""},{"$f":"IF(Dokumentenauswertung!V$10=\"\",\"\",IF(ISNUMBER(Dokumentenauswertung!V21)=FALSE,\"noch nicht bewertet\",IF(Dokumentenauswertung!V21>Dokumentenauswertung!$C21,\"max. Punkte überschritten\",Dokumentenauswertung!V21)))","v":""},{"$f":"IF(Dokumentenauswertung!W$10=\"\",\"\",IF(ISNUMBER(Dokumentenauswertung!W21)=FALSE,\"noch nicht bewertet\",IF(Dokumentenauswertung!W21>Dokumentenauswertung!$C21,\"max. Punkte überschritten\",Dokumentenauswertung!W21)))","v":""},{"$f":"IF(Dokumentenauswertung!X$10=\"\",\"\",IF(ISNUMBER(Dokumentenauswertung!X21)=FALSE,\"noch nicht bewertet\",IF(Dokumentenauswertung!X21>Dokumentenauswertung!$C21,\"max. Punkte überschritten\",Dokumentenauswertung!X21)))","v":""},{"$f":"IF(Dokumentenauswertung!Y$10=\"\",\"\",IF(ISNUMBER(Dokumentenauswertung!Y21)=FALSE,\"noch nicht bewertet\",IF(Dokumentenauswertung!Y21>Dokumentenauswertung!$C21,\"max. Punkte überschritten\",Dokumentenauswertung!Y21)))","v":""},{"$f":"IF(Dokumentenauswertung!Z$10=\"\",\"\",IF(ISNUMBER(Dokumentenauswertung!Z21)=FALSE,\"noch nicht bewertet\",IF(Dokumentenauswertung!Z21>Dokumentenauswertung!$C21,\"max. Punkte überschritten\",Dokumentenauswertung!Z21)))","v":""},{"$f":"IF(Dokumentenauswertung!AA$10=\"\",\"\",IF(ISNUMBER(Dokumentenauswertung!AA21)=FALSE,\"noch nicht bewertet\",IF(Dokumentenauswertung!AA21>Dokumentenauswertung!$C21,\"max. Punkte überschritten\",Dokumentenauswertung!AA21)))","v":""},{"$f":"IF(Dokumentenauswertung!AB$10=\"\",\"\",IF(ISNUMBER(Dokumentenauswertung!AB21)=FALSE,\"noch nicht bewertet\",IF(Dokumentenauswertung!AB21>Dokumentenauswertung!$C21,\"max. Punkte überschritten\",Dokumentenauswertung!AB21)))","v":""},{"$f":"IF(Dokumentenauswertung!AC$10=\"\",\"\",IF(ISNUMBER(Dokumentenauswertung!AC21)=FALSE,\"noch nicht bewertet\",IF(Dokumentenauswertung!AC21>Dokumentenauswertung!$C21,\"max. Punkte überschritten\",Dokumentenauswertung!AC21)))","v":""},{"$f":"IF(Dokumentenauswertung!AD$10=\"\",\"\",IF(ISNUMBER(Dokumentenauswertung!AD21)=FALSE,\"noch nicht bewertet\",IF(Dokumentenauswertung!AD21>Dokumentenauswertung!$C21,\"max. Punkte überschritten\",Dokumentenauswertung!AD21)))","v":""},{"$f":"IF(Dokumentenauswertung!AE$10=\"\",\"\",IF(ISNUMBER(Dokumentenauswertung!AE21)=FALSE,\"noch nicht bewertet\",IF(Dokumentenauswertung!AE21>Dokumentenauswertung!$C21,\"max. Punkte überschritten\",Dokumentenauswertung!AE21)))","v":""},{"$f":"IF(Dokumentenauswertung!AF$10=\"\",\"\",IF(ISNUMBER(Dokumentenauswertung!AF21)=FALSE,\"noch nicht bewertet\",IF(Dokumentenauswertung!AF21>Dokumentenauswertung!$C21,\"max. Punkte überschritten\",Dokumentenauswertung!AF21)))","v":""},{"$f":"IF(Dokumentenauswertung!AG$10=\"\",\"\",IF(ISNUMBER(Dokumentenauswertung!AG21)=FALSE,\"noch nicht bewertet\",IF(Dokumentenauswertung!AG21>Dokumentenauswertung!$C21,\"max. Punkte überschritten\",Dokumentenauswertung!AG21)))","v":""},{"$f":"IF(Dokumentenauswertung!AH$10=\"\",\"\",IF(ISNUMBER(Dokumentenauswertung!AH21)=FALSE,\"noch nicht bewertet\",IF(Dokumentenauswertung!AH21>Dokumentenauswertung!$C21,\"max. Punkte überschritten\",Dokumentenauswertung!AH21)))","v":""},{"$f":"IF(Dokumentenauswertung!AI$10=\"\",\"\",IF(ISNUMBER(Dokumentenauswertung!AI21)=FALSE,\"noch nicht bewertet\",IF(Dokumentenauswertung!AI21>Dokumentenauswertung!$C21,\"max. Punkte überschritten\",Dokumentenauswertung!AI21)))","v":""},{"$f":"IF(Dokumentenauswertung!AJ$10=\"\",\"\",IF(ISNUMBER(Dokumentenauswertung!AJ21)=FALSE,\"noch nicht bewertet\",IF(Dokumentenauswertung!AJ21>Dokumentenauswertung!$C21,\"max. Punkte überschritten\",Dokumentenauswertung!AJ21)))","v":""},{"$f":"IF(Dokumentenauswertung!AK$10=\"\",\"\",IF(ISNUMBER(Dokumentenauswertung!AK21)=FALSE,\"noch nicht bewertet\",IF(Dokumentenauswertung!AK21>Dokumentenauswertung!$C21,\"max. Punkte überschritten\",Dokumentenauswertung!AK21)))","v":""}]
[null,null,{"$f":"Dokumentenauswertung!$A22","v":"B2"},{"$f":"IF(Dokumentenauswertung!E$10=\"\",\"\",IF(ISNUMBER(Dokumentenauswertung!E22)=FALSE,\"noch nicht bewertet\",IF(Dokumentenauswertung!E22>Dokumentenauswertung!$C22,\"max. Punkte überschritten\",Dokumentenauswertung!E22)))","v":""},{"$f":"IF(Dokumentenauswertung!F$10=\"\",\"\",IF(ISNUMBER(Dokumentenauswertung!F22)=FALSE,\"noch nicht bewertet\",IF(Dokumentenauswertung!F22>Dokumentenauswertung!$C22,\"max. Punkte überschritten\",Dokumentenauswertung!F22)))","v":""},{"$f":"IF(Dokumentenauswertung!G$10=\"\",\"\",IF(ISNUMBER(Dokumentenauswertung!G22)=FALSE,\"noch nicht bewertet\",IF(Dokumentenauswertung!G22>Dokumentenauswertung!$C22,\"max. Punkte überschritten\",Dokumentenauswertung!G22)))","v":""},{"$f":"IF(Dokumentenauswertung!H$10=\"\",\"\",IF(ISNUMBER(Dokumentenauswertung!H22)=FALSE,\"noch nicht bewertet\",IF(Dokumentenauswertung!H22>Dokumentenauswertung!$C22,\"max. Punkte überschritten\",Dokumentenauswertung!H22)))","v":""},{"$f":"IF(Dokumentenauswertung!I$10=\"\",\"\",IF(ISNUMBER(Dokumentenauswertung!I22)=FALSE,\"noch nicht bewertet\",IF(Dokumentenauswertung!I22>Dokumentenauswertung!$C22,\"max. Punkte überschritten\",Dokumentenauswertung!I22)))","v":""},{"$f":"IF(Dokumentenauswertung!J$10=\"\",\"\",IF(ISNUMBER(Dokumentenauswertung!J22)=FALSE,\"noch nicht bewertet\",IF(Dokumentenauswertung!J22>Dokumentenauswertung!$C22,\"max. Punkte überschritten\",Dokumentenauswertung!J22)))","v":""},{"$f":"IF(Dokumentenauswertung!K$10=\"\",\"\",IF(ISNUMBER(Dokumentenauswertung!K22)=FALSE,\"noch nicht bewertet\",IF(Dokumentenauswertung!K22>Dokumentenauswertung!$C22,\"max. Punkte überschritten\",Dokumentenauswertung!K22)))","v":""},{"$f":"IF(Dokumentenauswertung!L$10=\"\",\"\",IF(ISNUMBER(Dokumentenauswertung!L22)=FALSE,\"noch nicht bewertet\",IF(Dokumentenauswertung!L22>Dokumentenauswertung!$C22,\"max. Punkte überschritten\",Dokumentenauswertung!L22)))","v":""},{"$f":"IF(Dokumentenauswertung!M$10=\"\",\"\",IF(ISNUMBER(Dokumentenauswertung!M22)=FALSE,\"noch nicht bewertet\",IF(Dokumentenauswertung!M22>Dokumentenauswertung!$C22,\"max. Punkte überschritten\",Dokumentenauswertung!M22)))","v":""},{"$f":"IF(Dokumentenauswertung!N$10=\"\",\"\",IF(ISNUMBER(Dokumentenauswertung!N22)=FALSE,\"noch nicht bewertet\",IF(Dokumentenauswertung!N22>Dokumentenauswertung!$C22,\"max. Punkte überschritten\",Dokumentenauswertung!N22)))","v":""},{"$f":"IF(Dokumentenauswertung!O$10=\"\",\"\",IF(ISNUMBER(Dokumentenauswertung!O22)=FALSE,\"noch nicht bewertet\",IF(Dokumentenauswertung!O22>Dokumentenauswertung!$C22,\"max. Punkte überschritten\",Dokumentenauswertung!O22)))","v":""},{"$f":"IF(Dokumentenauswertung!P$10=\"\",\"\",IF(ISNUMBER(Dokumentenauswertung!P22)=FALSE,\"noch nicht bewertet\",IF(Dokumentenauswertung!P22>Dokumentenauswertung!$C22,\"max. Punkte überschritten\",Dokumentenauswertung!P22)))","v":""},{"$f":"IF(Dokumentenauswertung!Q$10=\"\",\"\",IF(ISNUMBER(Dokumentenauswertung!Q22)=FALSE,\"noch nicht bewertet\",IF(Dokumentenauswertung!Q22>Dokumentenauswertung!$C22,\"max. Punkte überschritten\",Dokumentenauswertung!Q22)))","v":""},{"$f":"IF(Dokumentenauswertung!R$10=\"\",\"\",IF(ISNUMBER(Dokumentenauswertung!R22)=FALSE,\"noch nicht bewertet\",IF(Dokumentenauswertung!R22>Dokumentenauswertung!$C22,\"max. Punkte überschritten\",Dokumentenauswertung!R22)))","v":""},{"$f":"IF(Dokumentenauswertung!S$10=\"\",\"\",IF(ISNUMBER(Dokumentenauswertung!S22)=FALSE,\"noch nicht bewertet\",IF(Dokumentenauswertung!S22>Dokumentenauswertung!$C22,\"max. Punkte überschritten\",Dokumentenauswertung!S22)))","v":""},{"$f":"IF(Dokumentenauswertung!T$10=\"\",\"\",IF(ISNUMBER(Dokumentenauswertung!T22)=FALSE,\"noch nicht bewertet\",IF(Dokumentenauswertung!T22>Dokumentenauswertung!$C22,\"max. Punkte überschritten\",Dokumentenauswertung!T22)))","v":""},{"$f":"IF(Dokumentenauswertung!U$10=\"\",\"\",IF(ISNUMBER(Dokumentenauswertung!U22)=FALSE,\"noch nicht bewertet\",IF(Dokumentenauswertung!U22>Dokumentenauswertung!$C22,\"max. Punkte überschritten\",Dokumentenauswertung!U22)))","v":""},{"$f":"IF(Dokumentenauswertung!V$10=\"\",\"\",IF(ISNUMBER(Dokumentenauswertung!V22)=FALSE,\"noch nicht bewertet\",IF(Dokumentenauswertung!V22>Dokumentenauswertung!$C22,\"max. Punkte überschritten\",Dokumentenauswertung!V22)))","v":""},{"$f":"IF(Dokumentenauswertung!W$10=\"\",\"\",IF(ISNUMBER(Dokumentenauswertung!W22)=FALSE,\"noch nicht bewertet\",IF(Dokumentenauswertung!W22>Dokumentenauswertung!$C22,\"max. Punkte überschritten\",Dokumentenauswertung!W22)))","v":""},{"$f":"IF(Dokumentenauswertung!X$10=\"\",\"\",IF(ISNUMBER(Dokumentenauswertung!X22)=FALSE,\"noch nicht bewertet\",IF(Dokumentenauswertung!X22>Dokumentenauswertung!$C22,\"max. Punkte überschritten\",Dokumentenauswertung!X22)))","v":""},{"$f":"IF(Dokumentenauswertung!Y$10=\"\",\"\",IF(ISNUMBER(Dokumentenauswertung!Y22)=FALSE,\"noch nicht bewertet\",IF(Dokumentenauswertung!Y22>Dokumentenauswertung!$C22,\"max. Punkte überschritten\",Dokumentenauswertung!Y22)))","v":""},{"$f":"IF(Dokumentenauswertung!Z$10=\"\",\"\",IF(ISNUMBER(Dokumentenauswertung!Z22)=FALSE,\"noch nicht bewertet\",IF(Dokumentenauswertung!Z22>Dokumentenauswertung!$C22,\"max. Punkte überschritten\",Dokumentenauswertung!Z22)))","v":""},{"$f":"IF(Dokumentenauswertung!AA$10=\"\",\"\",IF(ISNUMBER(Dokumentenauswertung!AA22)=FALSE,\"noch nicht bewertet\",IF(Dokumentenauswertung!AA22>Dokumentenauswertung!$C22,\"max. Punkte überschritten\",Dokumentenauswertung!AA22)))","v":""},{"$f":"IF(Dokumentenauswertung!AB$10=\"\",\"\",IF(ISNUMBER(Dokumentenauswertung!AB22)=FALSE,\"noch nicht bewertet\",IF(Dokumentenauswertung!AB22>Dokumentenauswertung!$C22,\"max. Punkte überschritten\",Dokumentenauswertung!AB22)))","v":""},{"$f":"IF(Dokumentenauswertung!AC$10=\"\",\"\",IF(ISNUMBER(Dokumentenauswertung!AC22)=FALSE,\"noch nicht bewertet\",IF(Dokumentenauswertung!AC22>Dokumentenauswertung!$C22,\"max. Punkte überschritten\",Dokumentenauswertung!AC22)))","v":""},{"$f":"IF(Dokumentenauswertung!AD$10=\"\",\"\",IF(ISNUMBER(Dokumentenauswertung!AD22)=FALSE,\"noch nicht bewertet\",IF(Dokumentenauswertung!AD22>Dokumentenauswertung!$C22,\"max. Punkte überschritten\",Dokumentenauswertung!AD22)))","v":""},{"$f":"IF(Dokumentenauswertung!AE$10=\"\",\"\",IF(ISNUMBER(Dokumentenauswertung!AE22)=FALSE,\"noch nicht bewertet\",IF(Dokumentenauswertung!AE22>Dokumentenauswertung!$C22,\"max. Punkte überschritten\",Dokumentenauswertung!AE22)))","v":""},{"$f":"IF(Dokumentenauswertung!AF$10=\"\",\"\",IF(ISNUMBER(Dokumentenauswertung!AF22)=FALSE,\"noch nicht bewertet\",IF(Dokumentenauswertung!AF22>Dokumentenauswertung!$C22,\"max. Punkte überschritten\",Dokumentenauswertung!AF22)))","v":""},{"$f":"IF(Dokumentenauswertung!AG$10=\"\",\"\",IF(ISNUMBER(Dokumentenauswertung!AG22)=FALSE,\"noch nicht bewertet\",IF(Dokumentenauswertung!AG22>Dokumentenauswertung!$C22,\"max. Punkte überschritten\",Dokumentenauswertung!AG22)))","v":""},{"$f":"IF(Dokumentenauswertung!AH$10=\"\",\"\",IF(ISNUMBER(Dokumentenauswertung!AH22)=FALSE,\"noch nicht bewertet\",IF(Dokumentenauswertung!AH22>Dokumentenauswertung!$C22,\"max. Punkte überschritten\",Dokumentenauswertung!AH22)))","v":""},{"$f":"IF(Dokumentenauswertung!AI$10=\"\",\"\",IF(ISNUMBER(Dokumentenauswertung!AI22)=FALSE,\"noch nicht bewertet\",IF(Dokumentenauswertung!AI22>Dokumentenauswertung!$C22,\"max. Punkte überschritten\",Dokumentenauswertung!AI22)))","v":""},{"$f":"IF(Dokumentenauswertung!AJ$10=\"\",\"\",IF(ISNUMBER(Dokumentenauswertung!AJ22)=FALSE,\"noch nicht bewertet\",IF(Dokumentenauswertung!AJ22>Dokumentenauswertung!$C22,\"max. Punkte überschritten\",Dokumentenauswertung!AJ22)))","v":""},{"$f":"IF(Dokumentenauswertung!AK$10=\"\",\"\",IF(ISNUMBER(Dokumentenauswertung!AK22)=FALSE,\"noch nicht bewertet\",IF(Dokumentenauswertung!AK22>Dokumentenauswertung!$C22,\"max. Punkte überschritten\",Dokumentenauswertung!AK22)))","v":""}]
[null,null,{"$f":"Dokumentenauswertung!$A23","v":"B3"},{"$f":"IF(Dokumentenauswertung!E$10=\"\",\"\",IF(ISNUMBER(Dokumentenauswertung!E22)=FALSE,\"noch nicht bewertet\",IF(Dokumentenauswertung!E23>Dokumentenauswertung!$C23,\"max. Punkte überschritten\",Dokumentenauswertung!E23)))","v":""},{"$f":"IF(Dokumentenauswertung!F$10=\"\",\"\",IF(ISNUMBER(Dokumentenauswertung!F22)=FALSE,\"noch nicht bewertet\",IF(Dokumentenauswertung!F23>Dokumentenauswertung!$C23,\"max. Punkte überschritten\",Dokumentenauswertung!F23)))","v":""},{"$f":"IF(Dokumentenauswertung!G$10=\"\",\"\",IF(ISNUMBER(Dokumentenauswertung!G22)=FALSE,\"noch nicht bewertet\",IF(Dokumentenauswertung!G23>Dokumentenauswertung!$C23,\"max. Punkte überschritten\",Dokumentenauswertung!G23)))","v":""},{"$f":"IF(Dokumentenauswertung!H$10=\"\",\"\",IF(ISNUMBER(Dokumentenauswertung!H22)=FALSE,\"noch nicht bewertet\",IF(Dokumentenauswertung!H23>Dokumentenauswertung!$C23,\"max. Punkte überschritten\",Dokumentenauswertung!H23)))","v":""},{"$f":"IF(Dokumentenauswertung!I$10=\"\",\"\",IF(ISNUMBER(Dokumentenauswertung!I22)=FALSE,\"noch nicht bewertet\",IF(Dokumentenauswertung!I23>Dokumentenauswertung!$C23,\"max. Punkte überschritten\",Dokumentenauswertung!I23)))","v":""},{"$f":"IF(Dokumentenauswertung!J$10=\"\",\"\",IF(ISNUMBER(Dokumentenauswertung!J22)=FALSE,\"noch nicht bewertet\",IF(Dokumentenauswertung!J23>Dokumentenauswertung!$C23,\"max. Punkte überschritten\",Dokumentenauswertung!J23)))","v":""},{"$f":"IF(Dokumentenauswertung!K$10=\"\",\"\",IF(ISNUMBER(Dokumentenauswertung!K22)=FALSE,\"noch nicht bewertet\",IF(Dokumentenauswertung!K23>Dokumentenauswertung!$C23,\"max. Punkte überschritten\",Dokumentenauswertung!K23)))","v":""},{"$f":"IF(Dokumentenauswertung!L$10=\"\",\"\",IF(ISNUMBER(Dokumentenauswertung!L22)=FALSE,\"noch nicht bewertet\",IF(Dokumentenauswertung!L23>Dokumentenauswertung!$C23,\"max. Punkte überschritten\",Dokumentenauswertung!L23)))","v":""},{"$f":"IF(Dokumentenauswertung!M$10=\"\",\"\",IF(ISNUMBER(Dokumentenauswertung!M22)=FALSE,\"noch nicht bewertet\",IF(Dokumentenauswertung!M23>Dokumentenauswertung!$C23,\"max. Punkte überschritten\",Dokumentenauswertung!M23)))","v":""},{"$f":"IF(Dokumentenauswertung!N$10=\"\",\"\",IF(ISNUMBER(Dokumentenauswertung!N22)=FALSE,\"noch nicht bewertet\",IF(Dokumentenauswertung!N23>Dokumentenauswertung!$C23,\"max. Punkte überschritten\",Dokumentenauswertung!N23)))","v":""},{"$f":"IF(Dokumentenauswertung!O$10=\"\",\"\",IF(ISNUMBER(Dokumentenauswertung!O22)=FALSE,\"noch nicht bewertet\",IF(Dokumentenauswertung!O23>Dokumentenauswertung!$C23,\"max. Punkte überschritten\",Dokumentenauswertung!O23)))","v":""},{"$f":"IF(Dokumentenauswertung!P$10=\"\",\"\",IF(ISNUMBER(Dokumentenauswertung!P22)=FALSE,\"noch nicht bewertet\",IF(Dokumentenauswertung!P23>Dokumentenauswertung!$C23,\"max. Punkte überschritten\",Dokumentenauswertung!P23)))","v":""},{"$f":"IF(Dokumentenauswertung!Q$10=\"\",\"\",IF(ISNUMBER(Dokumentenauswertung!Q22)=FALSE,\"noch nicht bewertet\",IF(Dokumentenauswertung!Q23>Dokumentenauswertung!$C23,\"max. Punkte überschritten\",Dokumentenauswertung!Q23)))","v":""},{"$f":"IF(Dokumentenauswertung!R$10=\"\",\"\",IF(ISNUMBER(Dokumentenauswertung!R22)=FALSE,\"noch nicht bewertet\",IF(Dokumentenauswertung!R23>Dokumentenauswertung!$C23,\"max. Punkte überschritten\",Dokumentenauswertung!R23)))","v":""},{"$f":"IF(Dokumentenauswertung!S$10=\"\",\"\",IF(ISNUMBER(Dokumentenauswertung!S22)=FALSE,\"noch nicht bewertet\",IF(Dokumentenauswertung!S23>Dokumentenauswertung!$C23,\"max. Punkte überschritten\",Dokumentenauswertung!S23)))","v":""},{"$f":"IF(Dokumentenauswertung!T$10=\"\",\"\",IF(ISNUMBER(Dokumentenauswertung!T22)=FALSE,\"noch nicht bewertet\",IF(Dokumentenauswertung!T23>Dokumentenauswertung!$C23,\"max. Punkte überschritten\",Dokumentenauswertung!T23)))","v":""},{"$f":"IF(Dokumentenauswertung!U$10=\"\",\"\",IF(ISNUMBER(Dokumentenauswertung!U22)=FALSE,\"noch nicht bewertet\",IF(Dokumentenauswertung!U23>Dokumentenauswertung!$C23,\"max. Punkte überschritten\",Dokumentenauswertung!U23)))","v":""},{"$f":"IF(Dokumentenauswertung!V$10=\"\",\"\",IF(ISNUMBER(Dokumentenauswertung!V22)=FALSE,\"noch nicht bewertet\",IF(Dokumentenauswertung!V23>Dokumentenauswertung!$C23,\"max. Punkte überschritten\",Dokumentenauswertung!V23)))","v":""},{"$f":"IF(Dokumentenauswertung!W$10=\"\",\"\",IF(ISNUMBER(Dokumentenauswertung!W22)=FALSE,\"noch nicht bewertet\",IF(Dokumentenauswertung!W23>Dokumentenauswertung!$C23,\"max. Punkte überschritten\",Dokumentenauswertung!W23)))","v":""},{"$f":"IF(Dokumentenauswertung!X$10=\"\",\"\",IF(ISNUMBER(Dokumentenauswertung!X22)=FALSE,\"noch nicht bewertet\",IF(Dokumentenauswertung!X23>Dokumentenauswertung!$C23,\"max. Punkte überschritten\",Dokumentenauswertung!X23)))","v":""},{"$f":"IF(Dokumentenauswertung!Y$10=\"\",\"\",IF(ISNUMBER(Dokumentenauswertung!Y22)=FALSE,\"noch nicht bewertet\",IF(Dokumentenauswertung!Y23>Dokumentenauswertung!$C23,\"max. Punkte überschritten\",Dokumentenauswertung!Y23)))","v":""},{"$f":"IF(Dokumentenauswertung!Z$10=\"\",\"\",IF(ISNUMBER(Dokumentenauswertung!Z22)=FALSE,\"noch nicht bewertet\",IF(Dokumentenauswertung!Z23>Dokumentenauswertung!$C23,\"max. Punkte überschritten\",Dokumentenauswertung!Z23)))","v":""},{"$f":"IF(Dokumentenauswertung!AA$10=\"\",\"\",IF(ISNUMBER(Dokumentenauswertung!AA22)=FALSE,\"noch nicht bewertet\",IF(Dokumentenauswertung!AA23>Dokumentenauswertung!$C23,\"max. Punkte überschritten\",Dokumentenauswertung!AA23)))","v":""},{"$f":"IF(Dokumentenauswertung!AB$10=\"\",\"\",IF(ISNUMBER(Dokumentenauswertung!AB22)=FALSE,\"noch nicht bewertet\",IF(Dokumentenauswertung!AB23>Dokumentenauswertung!$C23,\"max. Punkte überschritten\",Dokumentenauswertung!AB23)))","v":""},{"$f":"IF(Dokumentenauswertung!AC$10=\"\",\"\",IF(ISNUMBER(Dokumentenauswertung!AC22)=FALSE,\"noch nicht bewertet\",IF(Dokumentenauswertung!AC23>Dokumentenauswertung!$C23,\"max. Punkte überschritten\",Dokumentenauswertung!AC23)))","v":""},{"$f":"IF(Dokumentenauswertung!AD$10=\"\",\"\",IF(ISNUMBER(Dokumentenauswertung!AD22)=FALSE,\"noch nicht bewertet\",IF(Dokumentenauswertung!AD23>Dokumentenauswertung!$C23,\"max. Punkte überschritten\",Dokumentenauswertung!AD23)))","v":""},{"$f":"IF(Dokumentenauswertung!AE$10=\"\",\"\",IF(ISNUMBER(Dokumentenauswertung!AE22)=FALSE,\"noch nicht bewertet\",IF(Dokumentenauswertung!AE23>Dokumentenauswertung!$C23,\"max. Punkte überschritten\",Dokumentenauswertung!AE23)))","v":""},{"$f":"IF(Dokumentenauswertung!AF$10=\"\",\"\",IF(ISNUMBER(Dokumentenauswertung!AF22)=FALSE,\"noch nicht bewertet\",IF(Dokumentenauswertung!AF23>Dokumentenauswertung!$C23,\"max. Punkte überschritten\",Dokumentenauswertung!AF23)))","v":""},{"$f":"IF(Dokumentenauswertung!AG$10=\"\",\"\",IF(ISNUMBER(Dokumentenauswertung!AG22)=FALSE,\"noch nicht bewertet\",IF(Dokumentenauswertung!AG23>Dokumentenauswertung!$C23,\"max. Punkte überschritten\",Dokumentenauswertung!AG23)))","v":""},{"$f":"IF(Dokumentenauswertung!AH$10=\"\",\"\",IF(ISNUMBER(Dokumentenauswertung!AH22)=FALSE,\"noch nicht bewertet\",IF(Dokumentenauswertung!AH23>Dokumentenauswertung!$C23,\"max. Punkte überschritten\",Dokumentenauswertung!AH23)))","v":""},{"$f":"IF(Dokumentenauswertung!AI$10=\"\",\"\",IF(ISNUMBER(Dokumentenauswertung!AI22)=FALSE,\"noch nicht bewertet\",IF(Dokumentenauswertung!AI23>Dokumentenauswertung!$C23,\"max. Punkte überschritten\",Dokumentenauswertung!AI23)))","v":""},{"$f":"IF(Dokumentenauswertung!AJ$10=\"\",\"\",IF(ISNUMBER(Dokumentenauswertung!AJ22)=FALSE,\"noch nicht bewertet\",IF(Dokumentenauswertung!AJ23>Dokumentenauswertung!$C23,\"max. Punkte überschritten\",Dokumentenauswertung!AJ23)))","v":""},{"$f":"IF(Dokumentenauswertung!AK$10=\"\",\"\",IF(ISNUMBER(Dokumentenauswertung!AK22)=FALSE,\"noch nicht bewertet\",IF(Dokumentenauswertung!AK23>Dokumentenauswertung!$C23,\"max. Punkte überschritten\",Dokumentenauswertung!AK23)))","v":""}]
[null,null,{"$f":"Dokumentenauswertung!$A24","v":"C1"},{"$f":"IF(Dokumentenauswertung!E$10=\"\",\"\",IF(Dokumentenauswertung!$B24=Dokumentenauswertung!E24,Dokumentenauswertung!$C24,0))","v":""},{"$f":"IF(Dokumentenauswertung!F$10=\"\",\"\",IF(Dokumentenauswertung!$B24=Dokumentenauswertung!F24,Dokumentenauswertung!$C24,0))","v":""},{"$f":"IF(Dokumentenauswertung!G$10=\"\",\"\",IF(Dokumentenauswertung!$B24=Dokumentenauswertung!G24,Dokumentenauswertung!$C24,0))","v":""},{"$f":"IF(Dokumentenauswertung!H$10=\"\",\"\",IF(Dokumentenauswertung!$B24=Dokumentenauswertung!H24,Dokumentenauswertung!$C24,0))","v":""},{"$f":"IF(Dokumentenauswertung!I$10=\"\",\"\",IF(Dokumentenauswertung!$B24=Dokumentenauswertung!I24,Dokumentenauswertung!$C24,0))","v":""},{"$f":"IF(Dokumentenauswertung!J$10=\"\",\"\",IF(Dokumentenauswertung!$B24=Dokumentenauswertung!J24,Dokumentenauswertung!$C24,0))","v":""},{"$f":"IF(Dokumentenauswertung!K$10=\"\",\"\",IF(Dokumentenauswertung!$B24=Dokumentenauswertung!K24,Dokumentenauswertung!$C24,0))","v":""},{"$f":"IF(Dokumentenauswertung!L$10=\"\",\"\",IF(Dokumentenauswertung!$B24=Dokumentenauswertung!L24,Dokumentenauswertung!$C24,0))","v":""},{"$f":"IF(Dokumentenauswertung!M$10=\"\",\"\",IF(Dokumentenauswertung!$B24=Dokumentenauswertung!M24,Dokumentenauswertung!$C24,0))","v":""},{"$f":"IF(Dokumentenauswertung!N$10=\"\",\"\",IF(Dokumentenauswertung!$B24=Dokumentenauswertung!N24,Dokumentenauswertung!$C24,0))","v":""},{"$f":"IF(Dokumentenauswertung!O$10=\"\",\"\",IF(Dokumentenauswertung!$B24=Dokumentenauswertung!O24,Dokumentenauswertung!$C24,0))","v":""},{"$f":"IF(Dokumentenauswertung!P$10=\"\",\"\",IF(Dokumentenauswertung!$B24=Dokumentenauswertung!P24,Dokumentenauswertung!$C24,0))","v":""},{"$f":"IF(Dokumentenauswertung!Q$10=\"\",\"\",IF(Dokumentenauswertung!$B24=Dokumentenauswertung!Q24,Dokumentenauswertung!$C24,0))","v":""},{"$f":"IF(Dokumentenauswertung!R$10=\"\",\"\",IF(Dokumentenauswertung!$B24=Dokumentenauswertung!R24,Dokumentenauswertung!$C24,0))","v":""},{"$f":"IF(Dokumentenauswertung!S$10=\"\",\"\",IF(Dokumentenauswertung!$B24=Dokumentenauswertung!S24,Dokumentenauswertung!$C24,0))","v":""},{"$f":"IF(Dokumentenauswertung!T$10=\"\",\"\",IF(Dokumentenauswertung!$B24=Dokumentenauswertung!T24,Dokumentenauswertung!$C24,0))","v":""},{"$f":"IF(Dokumentenauswertung!U$10=\"\",\"\",IF(Dokumentenauswertung!$B24=Dokumentenauswertung!U24,Dokumentenauswertung!$C24,0))","v":""},{"$f":"IF(Dokumentenauswertung!V$10=\"\",\"\",IF(Dokumentenauswertung!$B24=Dokumentenauswertung!V24,Dokumentenauswertung!$C24,0))","v":""},{"$f":"IF(Dokumentenauswertung!W$10=\"\",\"\",IF(Dokumentenauswertung!$B24=Dokumentenauswertung!W24,Dokumentenauswertung!$C24,0))","v":""},{"$f":"IF(Dokumentenauswertung!X$10=\"\",\"\",IF(Dokumentenauswertung!$B24=Dokumentenauswertung!X24,Dokumentenauswertung!$C24,0))","v":""},{"$f":"IF(Dokumentenauswertung!Y$10=\"\",\"\",IF(Dokumentenauswertung!$B24=Dokumentenauswertung!Y24,Dokumentenauswertung!$C24,0))","v":""},{"$f":"IF(Dokumentenauswertung!Z$10=\"\",\"\",IF(Dokumentenauswertung!$B24=Dokumentenauswertung!Z24,Dokumentenauswertung!$C24,0))","v":""},{"$f":"IF(Dokumentenauswertung!AA$10=\"\",\"\",IF(Dokumentenauswertung!$B24=Dokumentenauswertung!AA24,Dokumentenauswertung!$C24,0))","v":""},{"$f":"IF(Dokumentenauswertung!AB$10=\"\",\"\",IF(Dokumentenauswertung!$B24=Dokumentenauswertung!AB24,Dokumentenauswertung!$C24,0))","v":""},{"$f":"IF(Dokumentenauswertung!AC$10=\"\",\"\",IF(Dokumentenauswertung!$B24=Dokumentenauswertung!AC24,Dokumentenauswertung!$C24,0))","v":""},{"$f":"IF(Dokumentenauswertung!AD$10=\"\",\"\",IF(Dokumentenauswertung!$B24=Dokumentenauswertung!AD24,Dokumentenauswertung!$C24,0))","v":""},{"$f":"IF(Dokumentenauswertung!AE$10=\"\",\"\",IF(Dokumentenauswertung!$B24=Dokumentenauswertung!AE24,Dokumentenauswertung!$C24,0))","v":""},{"$f":"IF(Dokumentenauswertung!AF$10=\"\",\"\",IF(Dokumentenauswertung!$B24=Dokumentenauswertung!AF24,Dokumentenauswertung!$C24,0))","v":""},{"$f":"IF(Dokumentenauswertung!AG$10=\"\",\"\",IF(Dokumentenauswertung!$B24=Dokumentenauswertung!AG24,Dokumentenauswertung!$C24,0))","v":""},{"$f":"IF(Dokumentenauswertung!AH$10=\"\",\"\",IF(Dokumentenauswertung!$B24=Dokumentenauswertung!AH24,Dokumentenauswertung!$C24,0))","v":""},{"$f":"IF(Dokumentenauswertung!AI$10=\"\",\"\",IF(Dokumentenauswertung!$B24=Dokumentenauswertung!AI24,Dokumentenauswertung!$C24,0))","v":""},{"$f":"IF(Dokumentenauswertung!AJ$10=\"\",\"\",IF(Dokumentenauswertung!$B24=Dokumentenauswertung!AJ24,Dokumentenauswertung!$C24,0))","v":""},{"$f":"IF(Dokumentenauswertung!AK$10=\"\",\"\",IF(Dokumentenauswertung!$B24=Dokumentenauswertung!AK24,Dokumentenauswertung!$C24,0))","v":""}]
[null,null,{"$f":"Dokumentenauswertung!$A25","v":"C2"},{"$f":"IF(Dokumentenauswertung!E$10=\"\",\"\",IF(Dokumentenauswertung!$B25=Dokumentenauswertung!E25,Dokumentenauswertung!$C25,0))","v":""},{"$f":"IF(Dokumentenauswertung!F$10=\"\",\"\",IF(Dokumentenauswertung!$B25=Dokumentenauswertung!F25,Dokumentenauswertung!$C25,0))","v":""},{"$f":"IF(Dokumentenauswertung!G$10=\"\",\"\",IF(Dokumentenauswertung!$B25=Dokumentenauswertung!G25,Dokumentenauswertung!$C25,0))","v":""},{"$f":"IF(Dokumentenauswertung!H$10=\"\",\"\",IF(Dokumentenauswertung!$B25=Dokumentenauswertung!H25,Dokumentenauswertung!$C25,0))","v":""},{"$f":"IF(Dokumentenauswertung!I$10=\"\",\"\",IF(Dokumentenauswertung!$B25=Dokumentenauswertung!I25,Dokumentenauswertung!$C25,0))","v":""},{"$f":"IF(Dokumentenauswertung!J$10=\"\",\"\",IF(Dokumentenauswertung!$B25=Dokumentenauswertung!J25,Dokumentenauswertung!$C25,0))","v":""},{"$f":"IF(Dokumentenauswertung!K$10=\"\",\"\",IF(Dokumentenauswertung!$B25=Dokumentenauswertung!K25,Dokumentenauswertung!$C25,0))","v":""},{"$f":"IF(Dokumentenauswertung!L$10=\"\",\"\",IF(Dokumentenauswertung!$B25=Dokumentenauswertung!L25,Dokumentenauswertung!$C25,0))","v":""},{"$f":"IF(Dokumentenauswertung!M$10=\"\",\"\",IF(Dokumentenauswertung!$B25=Dokumentenauswertung!M25,Dokumentenauswertung!$C25,0))","v":""},{"$f":"IF(Dokumentenauswertung!N$10=\"\",\"\",IF(Dokumentenauswertung!$B25=Dokumentenauswertung!N25,Dokumentenauswertung!$C25,0))","v":""},{"$f":"IF(Dokumentenauswertung!O$10=\"\",\"\",IF(Dokumentenauswertung!$B25=Dokumentenauswertung!O25,Dokumentenauswertung!$C25,0))","v":""},{"$f":"IF(Dokumentenauswertung!P$10=\"\",\"\",IF(Dokumentenauswertung!$B25=Dokumentenauswertung!P25,Dokumentenauswertung!$C25,0))","v":""},{"$f":"IF(Dokumentenauswertung!Q$10=\"\",\"\",IF(Dokumentenauswertung!$B25=Dokumentenauswertung!Q25,Dokumentenauswertung!$C25,0))","v":""},{"$f":"IF(Dokumentenauswertung!R$10=\"\",\"\",IF(Dokumentenauswertung!$B25=Dokumentenauswertung!R25,Dokumentenauswertung!$C25,0))","v":""},{"$f":"IF(Dokumentenauswertung!S$10=\"\",\"\",IF(Dokumentenauswertung!$B25=Dokumentenauswertung!S25,Dokumentenauswertung!$C25,0))","v":""},{"$f":"IF(Dokumentenauswertung!T$10=\"\",\"\",IF(Dokumentenauswertung!$B25=Dokumentenauswertung!T25,Dokumentenauswertung!$C25,0))","v":""},{"$f":"IF(Dokumentenauswertung!U$10=\"\",\"\",IF(Dokumentenauswertung!$B25=Dokumentenauswertung!U25,Dokumentenauswertung!$C25,0))","v":""},{"$f":"IF(Dokumentenauswertung!V$10=\"\",\"\",IF(Dokumentenauswertung!$B25=Dokumentenauswertung!V25,Dokumentenauswertung!$C25,0))","v":""},{"$f":"IF(Dokumentenauswertung!W$10=\"\",\"\",IF(Dokumentenauswertung!$B25=Dokumentenauswertung!W25,Dokumentenauswertung!$C25,0))","v":""},{"$f":"IF(Dokumentenauswertung!X$10=\"\",\"\",IF(Dokumentenauswertung!$B25=Dokumentenauswertung!X25,Dokumentenauswertung!$C25,0))","v":""},{"$f":"IF(Dokumentenauswertung!Y$10=\"\",\"\",IF(Dokumentenauswertung!$B25=Dokumentenauswertung!Y25,Dokumentenauswertung!$C25,0))","v":""},{"$f":"IF(Dokumentenauswertung!Z$10=\"\",\"\",IF(Dokumentenauswertung!$B25=Dokumentenauswertung!Z25,Dokumentenauswertung!$C25,0))","v":""},{"$f":"IF(Dokumentenauswertung!AA$10=\"\",\"\",IF(Dokumentenauswertung!$B25=Dokumentenauswertung!AA25,Dokumentenauswertung!$C25,0))","v":""},{"$f":"IF(Dokumentenauswertung!AB$10=\"\",\"\",IF(Dokumentenauswertung!$B25=Dokumentenauswertung!AB25,Dokumentenauswertung!$C25,0))","v":""},{"$f":"IF(Dokumentenauswertung!AC$10=\"\",\"\",IF(Dokumentenauswertung!$B25=Dokumentenauswertung!AC25,Dokumentenauswertung!$C25,0))","v":""},{"$f":"IF(Dokumentenauswertung!AD$10=\"\",\"\",IF(Dokumentenauswertung!$B25=Dokumentenauswertung!AD25,Dokumentenauswertung!$C25,0))","v":""},{"$f":"IF(Dokumentenauswertung!AE$10=\"\",\"\",IF(Dokumentenauswertung!$B25=Dokumentenauswertung!AE25,Dokumentenauswertung!$C25,0))","v":""},{"$f":"IF(Dokumentenauswertung!AF$10=\"\",\"\",IF(Dokumentenauswertung!$B25=Dokumentenauswertung!AF25,Dokumentenauswertung!$C25,0))","v":""},{"$f":"IF(Dokumentenauswertung!AG$10=\"\",\"\",IF(Dokumentenauswertung!$B25=Dokumentenauswertung!AG25,Dokumentenauswertung!$C25,0))","v":""},{"$f":"IF(Dokumentenauswertung!AH$10=\"\",\"\",IF(Dokumentenauswertung!$B25=Dokumentenauswertung!AH25,Dokumentenauswertung!$C25,0))","v":""},{"$f":"IF(Dokumentenauswertung!AI$10=\"\",\"\",IF(Dokumentenauswertung!$B25=Dokumentenauswertung!AI25,Dokumentenauswertung!$C25,0))","v":""},{"$f":"IF(Dokumentenauswertung!AJ$10=\"\",\"\",IF(Dokumentenauswertung!$B25=Dokumentenauswertung!AJ25,Dokumentenauswertung!$C25,0))","v":""},{"$f":"IF(Dokumentenauswertung!AK$10=\"\",\"\",IF(Dokumentenauswertung!$B25=Dokumentenauswertung!AK25,Dokumentenauswertung!$C25,0))","v":""}]
[null,null,{"$f":"Dokumentenauswertung!$A26","v":"C3.1"},{"$f":"IF(Dokumentenauswertung!E$10=\"\",\"\",IF(Dokumentenauswertung!E$26=Dokumentenauswertung!$B$26,Dokumentenauswertung!$C26,IF(Dokumentenauswertung!E$26=Dokumentenauswertung!$B$27,Dokumentenauswertung!$C$26,0)))","v":""},{"$f":"IF(Dokumentenauswertung!F$10=\"\",\"\",IF(Dokumentenauswertung!F$26=Dokumentenauswertung!$B$26,Dokumentenauswertung!$C26,IF(Dokumentenauswertung!F$26=Dokumentenauswertung!$B$27,Dokumentenauswertung!$C$26,0)))","v":""},{"$f":"IF(Dokumentenauswertung!G$10=\"\",\"\",IF(Dokumentenauswertung!G$26=Dokumentenauswertung!$B$26,Dokumentenauswertung!$C26,IF(Dokumentenauswertung!G$26=Dokumentenauswertung!$B$27,Dokumentenauswertung!$C$26,0)))","v":""},{"$f":"IF(Dokumentenauswertung!H$10=\"\",\"\",IF(Dokumentenauswertung!H$26=Dokumentenauswertung!$B$26,Dokumentenauswertung!$C26,IF(Dokumentenauswertung!H$26=Dokumentenauswertung!$B$27,Dokumentenauswertung!$C$26,0)))","v":""},{"$f":"IF(Dokumentenauswertung!I$10=\"\",\"\",IF(Dokumentenauswertung!I$26=Dokumentenauswertung!$B$26,Dokumentenauswertung!$C26,IF(Dokumentenauswertung!I$26=Dokumentenauswertung!$B$27,Dokumentenauswertung!$C$26,0)))","v":""},{"$f":"IF(Dokumentenauswertung!J$10=\"\",\"\",IF(Dokumentenauswertung!J$26=Dokumentenauswertung!$B$26,Dokumentenauswertung!$C26,IF(Dokumentenauswertung!J$26=Dokumentenauswertung!$B$27,Dokumentenauswertung!$C$26,0)))","v":""},{"$f":"IF(Dokumentenauswertung!K$10=\"\",\"\",IF(Dokumentenauswertung!K$26=Dokumentenauswertung!$B$26,Dokumentenauswertung!$C26,IF(Dokumentenauswertung!K$26=Dokumentenauswertung!$B$27,Dokumentenauswertung!$C$26,0)))","v":""},{"$f":"IF(Dokumentenauswertung!L$10=\"\",\"\",IF(Dokumentenauswertung!L$26=Dokumentenauswertung!$B$26,Dokumentenauswertung!$C26,IF(Dokumentenauswertung!L$26=Dokumentenauswertung!$B$27,Dokumentenauswertung!$C$26,0)))","v":""},{"$f":"IF(Dokumentenauswertung!M$10=\"\",\"\",IF(Dokumentenauswertung!M$26=Dokumentenauswertung!$B$26,Dokumentenauswertung!$C26,IF(Dokumentenauswertung!M$26=Dokumentenauswertung!$B$27,Dokumentenauswertung!$C$26,0)))","v":""},{"$f":"IF(Dokumentenauswertung!N$10=\"\",\"\",IF(Dokumentenauswertung!N$26=Dokumentenauswertung!$B$26,Dokumentenauswertung!$C26,IF(Dokumentenauswertung!N$26=Dokumentenauswertung!$B$27,Dokumentenauswertung!$C$26,0)))","v":""},{"$f":"IF(Dokumentenauswertung!O$10=\"\",\"\",IF(Dokumentenauswertung!O$26=Dokumentenauswertung!$B$26,Dokumentenauswertung!$C26,IF(Dokumentenauswertung!O$26=Dokumentenauswertung!$B$27,Dokumentenauswertung!$C$26,0)))","v":""},{"$f":"IF(Dokumentenauswertung!P$10=\"\",\"\",IF(Dokumentenauswertung!P$26=Dokumentenauswertung!$B$26,Dokumentenauswertung!$C26,IF(Dokumentenauswertung!P$26=Dokumentenauswertung!$B$27,Dokumentenauswertung!$C$26,0)))","v":""},{"$f":"IF(Dokumentenauswertung!Q$10=\"\",\"\",IF(Dokumentenauswertung!Q$26=Dokumentenauswertung!$B$26,Dokumentenauswertung!$C26,IF(Dokumentenauswertung!Q$26=Dokumentenauswertung!$B$27,Dokumentenauswertung!$C$26,0)))","v":""},{"$f":"IF(Dokumentenauswertung!R$10=\"\",\"\",IF(Dokumentenauswertung!R$26=Dokumentenauswertung!$B$26,Dokumentenauswertung!$C26,IF(Dokumentenauswertung!R$26=Dokumentenauswertung!$B$27,Dokumentenauswertung!$C$26,0)))","v":""},{"$f":"IF(Dokumentenauswertung!S$10=\"\",\"\",IF(Dokumentenauswertung!S$26=Dokumentenauswertung!$B$26,Dokumentenauswertung!$C26,IF(Dokumentenauswertung!S$26=Dokumentenauswertung!$B$27,Dokumentenauswertung!$C$26,0)))","v":""},{"$f":"IF(Dokumentenauswertung!T$10=\"\",\"\",IF(Dokumentenauswertung!T$26=Dokumentenauswertung!$B$26,Dokumentenauswertung!$C26,IF(Dokumentenauswertung!T$26=Dokumentenauswertung!$B$27,Dokumentenauswertung!$C$26,0)))","v":""},{"$f":"IF(Dokumentenauswertung!U$10=\"\",\"\",IF(Dokumentenauswertung!U$26=Dokumentenauswertung!$B$26,Dokumentenauswertung!$C26,IF(Dokumentenauswertung!U$26=Dokumentenauswertung!$B$27,Dokumentenauswertung!$C$26,0)))","v":""},{"$f":"IF(Dokumentenauswertung!V$10=\"\",\"\",IF(Dokumentenauswertung!V$26=Dokumentenauswertung!$B$26,Dokumentenauswertung!$C26,IF(Dokumentenauswertung!V$26=Dokumentenauswertung!$B$27,Dokumentenauswertung!$C$26,0)))","v":""},{"$f":"IF(Dokumentenauswertung!W$10=\"\",\"\",IF(Dokumentenauswertung!W$26=Dokumentenauswertung!$B$26,Dokumentenauswertung!$C26,IF(Dokumentenauswertung!W$26=Dokumentenauswertung!$B$27,Dokumentenauswertung!$C$26,0)))","v":""},{"$f":"IF(Dokumentenauswertung!X$10=\"\",\"\",IF(Dokumentenauswertung!X$26=Dokumentenauswertung!$B$26,Dokumentenauswertung!$C26,IF(Dokumentenauswertung!X$26=Dokumentenauswertung!$B$27,Dokumentenauswertung!$C$26,0)))","v":""},{"$f":"IF(Dokumentenauswertung!Y$10=\"\",\"\",IF(Dokumentenauswertung!Y$26=Dokumentenauswertung!$B$26,Dokumentenauswertung!$C26,IF(Dokumentenauswertung!Y$26=Dokumentenauswertung!$B$27,Dokumentenauswertung!$C$26,0)))","v":""},{"$f":"IF(Dokumentenauswertung!Z$10=\"\",\"\",IF(Dokumentenauswertung!Z$26=Dokumentenauswertung!$B$26,Dokumentenauswertung!$C26,IF(Dokumentenauswertung!Z$26=Dokumentenauswertung!$B$27,Dokumentenauswertung!$C$26,0)))","v":""},{"$f":"IF(Dokumentenauswertung!AA$10=\"\",\"\",IF(Dokumentenauswertung!AA$26=Dokumentenauswertung!$B$26,Dokumentenauswertung!$C26,IF(Dokumentenauswertung!AA$26=Dokumentenauswertung!$B$27,Dokumentenauswertung!$C$26,0)))","v":""},{"$f":"IF(Dokumentenauswertung!AB$10=\"\",\"\",IF(Dokumentenauswertung!AB$26=Dokumentenauswertung!$B$26,Dokumentenauswertung!$C26,IF(Dokumentenauswertung!AB$26=Dokumentenauswertung!$B$27,Dokumentenauswertung!$C$26,0)))","v":""},{"$f":"IF(Dokumentenauswertung!AC$10=\"\",\"\",IF(Dokumentenauswertung!AC$26=Dokumentenauswertung!$B$26,Dokumentenauswertung!$C26,IF(Dokumentenauswertung!AC$26=Dokumentenauswertung!$B$27,Dokumentenauswertung!$C$26,0)))","v":""},{"$f":"IF(Dokumentenauswertung!AD$10=\"\",\"\",IF(Dokumentenauswertung!AD$26=Dokumentenauswertung!$B$26,Dokumentenauswertung!$C26,IF(Dokumentenauswertung!AD$26=Dokumentenauswertung!$B$27,Dokumentenauswertung!$C$26,0)))","v":""},{"$f":"IF(Dokumentenauswertung!AE$10=\"\",\"\",IF(Dokumentenauswertung!AE$26=Dokumentenauswertung!$B$26,Dokumentenauswertung!$C26,IF(Dokumentenauswertung!AE$26=Dokumentenauswertung!$B$27,Dokumentenauswertung!$C$26,0)))","v":""},{"$f":"IF(Dokumentenauswertung!AF$10=\"\",\"\",IF(Dokumentenauswertung!AF$26=Dokumentenauswertung!$B$26,Dokumentenauswertung!$C26,IF(Dokumentenauswertung!AF$26=Dokumentenauswertung!$B$27,Dokumentenauswertung!$C$26,0)))","v":""},{"$f":"IF(Dokumentenauswertung!AG$10=\"\",\"\",IF(Dokumentenauswertung!AG$26=Dokumentenauswertung!$B$26,Dokumentenauswertung!$C26,IF(Dokumentenauswertung!AG$26=Dokumentenauswertung!$B$27,Dokumentenauswertung!$C$26,0)))","v":""},{"$f":"IF(Dokumentenauswertung!AH$10=\"\",\"\",IF(Dokumentenauswertung!AH$26=Dokumentenauswertung!$B$26,Dokumentenauswertung!$C26,IF(Dokumentenauswertung!AH$26=Dokumentenauswertung!$B$27,Dokumentenauswertung!$C$26,0)))","v":""},{"$f":"IF(Dokumentenauswertung!AI$10=\"\",\"\",IF(Dokumentenauswertung!AI$26=Dokumentenauswertung!$B$26,Dokumentenauswertung!$C26,IF(Dokumentenauswertung!AI$26=Dokumentenauswertung!$B$27,Dokumentenauswertung!$C$26,0)))","v":""},{"$f":"IF(Dokumentenauswertung!AJ$10=\"\",\"\",IF(Dokumentenauswertung!AJ$26=Dokumentenauswertung!$B$26,Dokumentenauswertung!$C26,IF(Dokumentenauswertung!AJ$26=Dokumentenauswertung!$B$27,Dokumentenauswertung!$C$26,0)))","v":""},{"$f":"IF(Dokumentenauswertung!AK$10=\"\",\"\",IF(Dokumentenauswertung!AK$26=Dokumentenauswertung!$B$26,Dokumentenauswertung!$C26,IF(Dokumentenauswertung!AK$26=Dokumentenauswertung!$B$27,Dokumentenauswertung!$C$26,0)))","v":""}]
[null,null,{"$f":"Dokumentenauswertung!$A27","v":"C3.2"},{"$f":"IF(Dokumentenauswertung!E$10=\"\",\"\",IF(Dokumentenauswertung!E$27=Dokumentenauswertung!$B$27,Dokumentenauswertung!$C27,IF(Dokumentenauswertung!E$27=Dokumentenauswertung!$B$26,Dokumentenauswertung!$C$27,0)))","v":""},{"$f":"IF(Dokumentenauswertung!F$10=\"\",\"\",IF(Dokumentenauswertung!F$27=Dokumentenauswertung!$B$27,Dokumentenauswertung!$C27,IF(Dokumentenauswertung!F$27=Dokumentenauswertung!$B$26,Dokumentenauswertung!$C$27,0)))","v":""},{"$f":"IF(Dokumentenauswertung!G$10=\"\",\"\",IF(Dokumentenauswertung!G$27=Dokumentenauswertung!$B$27,Dokumentenauswertung!$C27,IF(Dokumentenauswertung!G$27=Dokumentenauswertung!$B$26,Dokumentenauswertung!$C$27,0)))","v":""},{"$f":"IF(Dokumentenauswertung!H$10=\"\",\"\",IF(Dokumentenauswertung!H$27=Dokumentenauswertung!$B$27,Dokumentenauswertung!$C27,IF(Dokumentenauswertung!H$27=Dokumentenauswertung!$B$26,Dokumentenauswertung!$C$27,0)))","v":""},{"$f":"IF(Dokumentenauswertung!I$10=\"\",\"\",IF(Dokumentenauswertung!I$27=Dokumentenauswertung!$B$27,Dokumentenauswertung!$C27,IF(Dokumentenauswertung!I$27=Dokumentenauswertung!$B$26,Dokumentenauswertung!$C$27,0)))","v":""},{"$f":"IF(Dokumentenauswertung!J$10=\"\",\"\",IF(Dokumentenauswertung!J$27=Dokumentenauswertung!$B$27,Dokumentenauswertung!$C27,IF(Dokumentenauswertung!J$27=Dokumentenauswertung!$B$26,Dokumentenauswertung!$C$27,0)))","v":""},{"$f":"IF(Dokumentenauswertung!K$10=\"\",\"\",IF(Dokumentenauswertung!K$27=Dokumentenauswertung!$B$27,Dokumentenauswertung!$C27,IF(Dokumentenauswertung!K$27=Dokumentenauswertung!$B$26,Dokumentenauswertung!$C$27,0)))","v":""},{"$f":"IF(Dokumentenauswertung!L$10=\"\",\"\",IF(Dokumentenauswertung!L$27=Dokumentenauswertung!$B$27,Dokumentenauswertung!$C27,IF(Dokumentenauswertung!L$27=Dokumentenauswertung!$B$26,Dokumentenauswertung!$C$27,0)))","v":""},{"$f":"IF(Dokumentenauswertung!M$10=\"\",\"\",IF(Dokumentenauswertung!M$27=Dokumentenauswertung!$B$27,Dokumentenauswertung!$C27,IF(Dokumentenauswertung!M$27=Dokumentenauswertung!$B$26,Dokumentenauswertung!$C$27,0)))","v":""},{"$f":"IF(Dokumentenauswertung!N$10=\"\",\"\",IF(Dokumentenauswertung!N$27=Dokumentenauswertung!$B$27,Dokumentenauswertung!$C27,IF(Dokumentenauswertung!N$27=Dokumentenauswertung!$B$26,Dokumentenauswertung!$C$27,0)))","v":""},{"$f":"IF(Dokumentenauswertung!O$10=\"\",\"\",IF(Dokumentenauswertung!O$27=Dokumentenauswertung!$B$27,Dokumentenauswertung!$C27,IF(Dokumentenauswertung!O$27=Dokumentenauswertung!$B$26,Dokumentenauswertung!$C$27,0)))","v":""},{"$f":"IF(Dokumentenauswertung!P$10=\"\",\"\",IF(Dokumentenauswertung!P$27=Dokumentenauswertung!$B$27,Dokumentenauswertung!$C27,IF(Dokumentenauswertung!P$27=Dokumentenauswertung!$B$26,Dokumentenauswertung!$C$27,0)))","v":""},{"$f":"IF(Dokumentenauswertung!Q$10=\"\",\"\",IF(Dokumentenauswertung!Q$27=Dokumentenauswertung!$B$27,Dokumentenauswertung!$C27,IF(Dokumentenauswertung!Q$27=Dokumentenauswertung!$B$26,Dokumentenauswertung!$C$27,0)))","v":""},{"$f":"IF(Dokumentenauswertung!R$10=\"\",\"\",IF(Dokumentenauswertung!R$27=Dokumentenauswertung!$B$27,Dokumentenauswertung!$C27,IF(Dokumentenauswertung!R$27=Dokumentenauswertung!$B$26,Dokumentenauswertung!$C$27,0)))","v":""},{"$f":"IF(Dokumentenauswertung!S$10=\"\",\"\",IF(Dokumentenauswertung!S$27=Dokumentenauswertung!$B$27,Dokumentenauswertung!$C27,IF(Dokumentenauswertung!S$27=Dokumentenauswertung!$B$26,Dokumentenauswertung!$C$27,0)))","v":""},{"$f":"IF(Dokumentenauswertung!T$10=\"\",\"\",IF(Dokumentenauswertung!T$27=Dokumentenauswertung!$B$27,Dokumentenauswertung!$C27,IF(Dokumentenauswertung!T$27=Dokumentenauswertung!$B$26,Dokumentenauswertung!$C$27,0)))","v":""},{"$f":"IF(Dokumentenauswertung!U$10=\"\",\"\",IF(Dokumentenauswertung!U$27=Dokumentenauswertung!$B$27,Dokumentenauswertung!$C27,IF(Dokumentenauswertung!U$27=Dokumentenauswertung!$B$26,Dokumentenauswertung!$C$27,0)))","v":""},{"$f":"IF(Dokumentenauswertung!V$10=\"\",\"\",IF(Dokumentenauswertung!V$27=Dokumentenauswertung!$B$27,Dokumentenauswertung!$C27,IF(Dokumentenauswertung!V$27=Dokumentenauswertung!$B$26,Dokumentenauswertung!$C$27,0)))","v":""},{"$f":"IF(Dokumentenauswertung!W$10=\"\",\"\",IF(Dokumentenauswertung!W$27=Dokumentenauswertung!$B$27,Dokumentenauswertung!$C27,IF(Dokumentenauswertung!W$27=Dokumentenauswertung!$B$26,Dokumentenauswertung!$C$27,0)))","v":""},{"$f":"IF(Dokumentenauswertung!X$10=\"\",\"\",IF(Dokumentenauswertung!X$27=Dokumentenauswertung!$B$27,Dokumentenauswertung!$C27,IF(Dokumentenauswertung!X$27=Dokumentenauswertung!$B$26,Dokumentenauswertung!$C$27,0)))","v":""},{"$f":"IF(Dokumentenauswertung!Y$10=\"\",\"\",IF(Dokumentenauswertung!Y$27=Dokumentenauswertung!$B$27,Dokumentenauswertung!$C27,IF(Dokumentenauswertung!Y$27=Dokumentenauswertung!$B$26,Dokumentenauswertung!$C$27,0)))","v":""},{"$f":"IF(Dokumentenauswertung!Z$10=\"\",\"\",IF(Dokumentenauswertung!Z$27=Dokumentenauswertung!$B$27,Dokumentenauswertung!$C27,IF(Dokumentenauswertung!Z$27=Dokumentenauswertung!$B$26,Dokumentenauswertung!$C$27,0)))","v":""},{"$f":"IF(Dokumentenauswertung!AA$10=\"\",\"\",IF(Dokumentenauswertung!AA$27=Dokumentenauswertung!$B$27,Dokumentenauswertung!$C27,IF(Dokumentenauswertung!AA$27=Dokumentenauswertung!$B$26,Dokumentenauswertung!$C$27,0)))","v":""},{"$f":"IF(Dokumentenauswertung!AB$10=\"\",\"\",IF(Dokumentenauswertung!AB$27=Dokumentenauswertung!$B$27,Dokumentenauswertung!$C27,IF(Dokumentenauswertung!AB$27=Dokumentenauswertung!$B$26,Dokumentenauswertung!$C$27,0)))","v":""},{"$f":"IF(Dokumentenauswertung!AC$10=\"\",\"\",IF(Dokumentenauswertung!AC$27=Dokumentenauswertung!$B$27,Dokumentenauswertung!$C27,IF(Dokumentenauswertung!AC$27=Dokumentenauswertung!$B$26,Dokumentenauswertung!$C$27,0)))","v":""},{"$f":"IF(Dokumentenauswertung!AD$10=\"\",\"\",IF(Dokumentenauswertung!AD$27=Dokumentenauswertung!$B$27,Dokumentenauswertung!$C27,IF(Dokumentenauswertung!AD$27=Dokumentenauswertung!$B$26,Dokumentenauswertung!$C$27,0)))","v":""},{"$f":"IF(Dokumentenauswertung!AE$10=\"\",\"\",IF(Dokumentenauswertung!AE$27=Dokumentenauswertung!$B$27,Dokumentenauswertung!$C27,IF(Dokumentenauswertung!AE$27=Dokumentenauswertung!$B$26,Dokumentenauswertung!$C$27,0)))","v":""},{"$f":"IF(Dokumentenauswertung!AF$10=\"\",\"\",IF(Dokumentenauswertung!AF$27=Dokumentenauswertung!$B$27,Dokumentenauswertung!$C27,IF(Dokumentenauswertung!AF$27=Dokumentenauswertung!$B$26,Dokumentenauswertung!$C$27,0)))","v":""},{"$f":"IF(Dokumentenauswertung!AG$10=\"\",\"\",IF(Dokumentenauswertung!AG$27=Dokumentenauswertung!$B$27,Dokumentenauswertung!$C27,IF(Dokumentenauswertung!AG$27=Dokumentenauswertung!$B$26,Dokumentenauswertung!$C$27,0)))","v":""},{"$f":"IF(Dokumentenauswertung!AH$10=\"\",\"\",IF(Dokumentenauswertung!AH$27=Dokumentenauswertung!$B$27,Dokumentenauswertung!$C27,IF(Dokumentenauswertung!AH$27=Dokumentenauswertung!$B$26,Dokumentenauswertung!$C$27,0)))","v":""},{"$f":"IF(Dokumentenauswertung!AI$10=\"\",\"\",IF(Dokumentenauswertung!AI$27=Dokumentenauswertung!$B$27,Dokumentenauswertung!$C27,IF(Dokumentenauswertung!AI$27=Dokumentenauswertung!$B$26,Dokumentenauswertung!$C$27,0)))","v":""},{"$f":"IF(Dokumentenauswertung!AJ$10=\"\",\"\",IF(Dokumentenauswertung!AJ$27=Dokumentenauswertung!$B$27,Dokumentenauswertung!$C27,IF(Dokumentenauswertung!AJ$27=Dokumentenauswertung!$B$26,Dokumentenauswertung!$C$27,0)))","v":""},{"$f":"IF(Dokumentenauswertung!AK$10=\"\",\"\",IF(Dokumentenauswertung!AK$27=Dokumentenauswertung!$B$27,Dokumentenauswertung!$C27,IF(Dokumentenauswertung!AK$27=Dokumentenauswertung!$B$26,Dokumentenauswertung!$C$27,0)))","v":""}]
[]
[null,null,"Richtige pro Fragebogen",{"$f":"IF(Dokumentenauswertung!E$10=\"\",\"\",COUNTIF(D$14:D$28,\">0\"))","v":""},{"$f":"IF(Dokumentenauswertung!F$10=\"\",\"\",COUNTIF(E$14:E$28,1))","v":""},{"$f":"IF(Dokumentenauswertung!G$10=\"\",\"\",COUNTIF(F$14:F$28,1))","v":""},{"$f":"IF(Dokumentenauswertung!H$10=\"\",\"\",COUNTIF(G$14:G$28,1))","v":""},{"$f":"IF(Dokumentenauswertung!I$10=\"\",\"\",COUNTIF(H$14:H$28,1))","v":""},{"$f":"IF(Dokumentenauswertung!J$10=\"\",\"\",COUNTIF(I$14:I$28,1))","v":""},{"$f":"IF(Dokumentenauswertung!K$10=\"\",\"\",COUNTIF(J$14:J$28,1))","v":""},{"$f":"IF(Dokumentenauswertung!L$10=\"\",\"\",COUNTIF(K$14:K$28,1))","v":""},{"$f":"IF(Dokumentenauswertung!M$10=\"\",\"\",COUNTIF(L$14:L$28,1))","v":""},{"$f":"IF(Dokumentenauswertung!N$10=\"\",\"\",COUNTIF(M$14:M$28,1))","v":""},{"$f":"IF(Dokumentenauswertung!O$10=\"\",\"\",COUNTIF(N$14:N$28,1))","v":""},{"$f":"IF(Dokumentenauswertung!P$10=\"\",\"\",COUNTIF(O$14:O$28,1))","v":""},{"$f":"IF(Dokumentenauswertung!Q$10=\"\",\"\",COUNTIF(P$14:P$28,1))","v":""},{"$f":"IF(Dokumentenauswertung!R$10=\"\",\"\",COUNTIF(Q$14:Q$28,1))","v":""},{"$f":"IF(Dokumentenauswertung!S$10=\"\",\"\",COUNTIF(R$14:R$28,1))","v":""},{"$f":"IF(Dokumentenauswertung!T$10=\"\",\"\",COUNTIF(S$14:S$28,1))","v":""},{"$f":"IF(Dokumentenauswertung!U$10=\"\",\"\",COUNTIF(T$14:T$28,1))","v":""},{"$f":"IF(Dokumentenauswertung!V$10=\"\",\"\",COUNTIF(U$14:U$28,1))","v":""},{"$f":"IF(Dokumentenauswertung!W$10=\"\",\"\",COUNTIF(V$14:V$28,1))","v":""},{"$f":"IF(Dokumentenauswertung!X$10=\"\",\"\",COUNTIF(W$14:W$28,1))","v":""},{"$f":"IF(Dokumentenauswertung!Y$10=\"\",\"\",COUNTIF(X$14:X$28,1))","v":""},{"$f":"IF(Dokumentenauswertung!Z$10=\"\",\"\",COUNTIF(Y$14:Y$28,1))","v":""},{"$f":"IF(Dokumentenauswertung!AA$10=\"\",\"\",COUNTIF(Z$14:Z$28,1))","v":""},{"$f":"IF(Dokumentenauswertung!AB$10=\"\",\"\",COUNTIF(AA$14:AA$28,1))","v":""},{"$f":"IF(Dokumentenauswertung!AC$10=\"\",\"\",COUNTIF(AB$14:AB$28,1))","v":""},{"$f":"IF(Dokumentenauswertung!AD$10=\"\",\"\",COUNTIF(AC$14:AC$28,1))","v":""},{"$f":"IF(Dokumentenauswertung!AE$10=\"\",\"\",COUNTIF(AD$14:AD$28,1))","v":""},{"$f":"IF(Dokumentenauswertung!AF$10=\"\",\"\",COUNTIF(AE$14:AE$28,1))","v":""},{"$f":"IF(Dokumentenauswertung!AG$10=\"\",\"\",COUNTIF(AF$14:AF$28,1))","v":""},{"$f":"IF(Dokumentenauswertung!AH$10=\"\",\"\",COUNTIF(AG$14:AG$28,1))","v":""},{"$f":"IF(Dokumentenauswertung!AI$10=\"\",\"\",COUNTIF(AH$14:AH$28,1))","v":""},{"$f":"IF(Dokumentenauswertung!AJ$10=\"\",\"\",COUNTIF(AI$14:AI$28,1))","v":""},{"$f":"IF(Dokumentenauswertung!AK$10=\"\",\"\",COUNTIF(AJ$14:AJ$28,1))","v":""}]
[null,null,"Falsche pro Fragebogen",{"$f":"IF(Dokumentenauswertung!E$10=\"\",\"\",COUNTIF(D$14:D$28,0))","v":""},{"$f":"IF(Dokumentenauswertung!F$10=\"\",\"\",COUNTIF(E$14:E$28,0))","v":""},{"$f":"IF(Dokumentenauswertung!G$10=\"\",\"\",COUNTIF(F$14:F$28,0))","v":""},{"$f":"IF(Dokumentenauswertung!H$10=\"\",\"\",COUNTIF(G$14:G$28,0))","v":""},{"$f":"IF(Dokumentenauswertung!I$10=\"\",\"\",COUNTIF(H$14:H$28,0))","v":""},{"$f":"IF(Dokumentenauswertung!J$10=\"\",\"\",COUNTIF(I$14:I$28,0))","v":""},{"$f":"IF(Dokumentenauswertung!K$10=\"\",\"\",COUNTIF(J$14:J$28,0))","v":""},{"$f":"IF(Dokumentenauswertung!L$10=\"\",\"\",COUNTIF(K$14:K$28,0))","v":""},{"$f":"IF(Dokumentenauswertung!M$10=\"\",\"\",COUNTIF(L$14:L$28,0))","v":""},{"$f":"IF(Dokumentenauswertung!N$10=\"\",\"\",COUNTIF(M$14:M$28,0))","v":""},{"$f":"IF(Dokumentenauswertung!O$10=\"\",\"\",COUNTIF(N$14:N$28,0))","v":""},{"$f":"IF(Dokumentenauswertung!P$10=\"\",\"\",COUNTIF(O$14:O$28,0))","v":""},{"$f":"IF(Dokumentenauswertung!Q$10=\"\",\"\",COUNTIF(P$14:P$28,0))","v":""},{"$f":"IF(Dokumentenauswertung!R$10=\"\",\"\",COUNTIF(Q$14:Q$28,0))","v":""},{"$f":"IF(Dokumentenauswertung!S$10=\"\",\"\",COUNTIF(R$14:R$28,0))","v":""},{"$f":"IF(Dokumentenauswertung!T$10=\"\",\"\",COUNTIF(S$14:S$28,0))","v":""},{"$f":"IF(Dokumentenauswertung!U$10=\"\",\"\",COUNTIF(T$14:T$28,0))","v":""},{"$f":"IF(Dokumentenauswertung!V$10=\"\",\"\",COUNTIF(U$14:U$28,0))","v":""},{"$f":"IF(Dokumentenauswertung!W$10=\"\",\"\",COUNTIF(V$14:V$28,0))","v":""},{"$f":"IF(Dokumentenauswertung!X$10=\"\",\"\",COUNTIF(W$14:W$28,0))","v":""},{"$f":"IF(Dokumentenauswertung!Y$10=\"\",\"\",COUNTIF(X$14:X$28,0))","v":""},{"$f":"IF(Dokumentenauswertung!Z$10=\"\",\"\",COUNTIF(Y$14:Y$28,0))","v":""},{"$f":"IF(Dokumentenauswertung!AA$10=\"\",\"\",COUNTIF(Z$14:Z$28,0))","v":""},{"$f":"IF(Dokumentenauswertung!AB$10=\"\",\"\",COUNTIF(AA$14:AA$28,0))","v":""},{"$f":"IF(Dokumentenauswertung!AC$10=\"\",\"\",COUNTIF(AB$14:AB$28,0))","v":""},{"$f":"IF(Dokumentenauswertung!AD$10=\"\",\"\",COUNTIF(AC$14:AC$28,0))","v":""},{"$f":"IF(Dokumentenauswertung!AE$10=\"\",\"\",COUNTIF(AD$14:AD$28,0))","v":""},{"$f":"IF(Dokumentenauswertung!AF$10=\"\",\"\",COUNTIF(AE$14:AE$28,0))","v":""},{"$f":"IF(Dokumentenauswertung!AG$10=\"\",\"\",COUNTIF(AF$14:AF$28,0))","v":""},{"$f":"IF(Dokumentenauswertung!AH$10=\"\",\"\",COUNTIF(AG$14:AG$28,0))","v":""},{"$f":"IF(Dokumentenauswertung!AI$10=\"\",\"\",COUNTIF(AH$14:AH$28,0))","v":""},{"$f":"IF(Dokumentenauswertung!AJ$10=\"\",\"\",COUNTIF(AI$14:AI$28,0))","v":""},{"$f":"IF(Dokumentenauswertung!AK$10=\"\",\"\",COUNTIF(AJ$14:AJ$28,0))","v":""}]
[]
[null,null,"Richtige pro Fragebogen in %",{"$f":"IF(Dokumentenauswertung!E$10=\"\",\"\",D29/SUM(D29:D30))","v":""},{"$f":"IF(Dokumentenauswertung!F$10=\"\",\"\",E29/SUM(E29:E30))","v":""},{"$f":"IF(Dokumentenauswertung!G$10=\"\",\"\",F29/SUM(F29:F30))","v":""},{"$f":"IF(Dokumentenauswertung!H$10=\"\",\"\",G29/SUM(G29:G30))","v":""},{"$f":"IF(Dokumentenauswertung!I$10=\"\",\"\",H29/SUM(H29:H30))","v":""},{"$f":"IF(Dokumentenauswertung!J$10=\"\",\"\",I29/SUM(I29:I30))","v":""},{"$f":"IF(Dokumentenauswertung!K$10=\"\",\"\",J29/SUM(J29:J30))","v":""},{"$f":"IF(Dokumentenauswertung!L$10=\"\",\"\",K29/SUM(K29:K30))","v":""},{"$f":"IF(Dokumentenauswertung!M$10=\"\",\"\",L29/SUM(L29:L30))","v":""},{"$f":"IF(Dokumentenauswertung!N$10=\"\",\"\",M29/SUM(M29:M30))","v":""},{"$f":"IF(Dokumentenauswertung!O$10=\"\",\"\",N29/SUM(N29:N30))","v":""},{"$f":"IF(Dokumentenauswertung!P$10=\"\",\"\",O29/SUM(O29:O30))","v":""},{"$f":"IF(Dokumentenauswertung!Q$10=\"\",\"\",P29/SUM(P29:P30))","v":""},{"$f":"IF(Dokumentenauswertung!R$10=\"\",\"\",Q29/SUM(Q29:Q30))","v":""},{"$f":"IF(Dokumentenauswertung!S$10=\"\",\"\",R29/SUM(R29:R30))","v":""},{"$f":"IF(Dokumentenauswertung!T$10=\"\",\"\",S29/SUM(S29:S30))","v":""},{"$f":"IF(Dokumentenauswertung!U$10=\"\",\"\",T29/SUM(T29:T30))","v":""},{"$f":"IF(Dokumentenauswertung!V$10=\"\",\"\",U29/SUM(U29:U30))","v":""},{"$f":"IF(Dokumentenauswertung!W$10=\"\",\"\",V29/SUM(V29:V30))","v":""},{"$f":"IF(Dokumentenauswertung!X$10=\"\",\"\",W29/SUM(W29:W30))","v":""},{"$f":"IF(Dokumentenauswertung!Y$10=\"\",\"\",X29/SUM(X29:X30))","v":""},{"$f":"IF(Dokumentenauswertung!Z$10=\"\",\"\",Y29/SUM(Y29:Y30))","v":""},{"$f":"IF(Dokumentenauswertung!AA$10=\"\",\"\",Z29/SUM(Z29:Z30))","v":""},{"$f":"IF(Dokumentenauswertung!AB$10=\"\",\"\",AA29/SUM(AA29:AA30))","v":""},{"$f":"IF(Dokumentenauswertung!AC$10=\"\",\"\",AB29/SUM(AB29:AB30))","v":""},{"$f":"IF(Dokumentenauswertung!AD$10=\"\",\"\",AC29/SUM(AC29:AC30))","v":""},{"$f":"IF(Dokumentenauswertung!AE$10=\"\",\"\",AD29/SUM(AD29:AD30))","v":""},{"$f":"IF(Dokumentenauswertung!AF$10=\"\",\"\",AE29/SUM(AE29:AE30))","v":""},{"$f":"IF(Dokumentenauswertung!AG$10=\"\",\"\",AF29/SUM(AF29:AF30))","v":""},{"$f":"IF(Dokumentenauswertung!AH$10=\"\",\"\",AG29/SUM(AG29:AG30))","v":""},{"$f":"IF(Dokumentenauswertung!AI$10=\"\",\"\",AH29/SUM(AH29:AH30))","v":""},{"$f":"IF(Dokumentenauswertung!AJ$10=\"\",\"\",AI29/SUM(AI29:AI30))","v":""},{"$f":"IF(Dokumentenauswertung!AK$10=\"\",\"\",AJ29/SUM(AJ29:AJ30))","v":""}]
[]
[null,null,"Maximal erreichbare Punktezahl",{"$f":"IF(Dokumentenauswertung!E$10=\"\",\"\",SUM(Dokumentenauswertung!$C$14:$C$27))","v":""},{"$f":"IF(Dokumentenauswertung!F$10=\"\",\"\",SUM(Dokumentenauswertung!$C$14:$C$27))","v":""},{"$f":"IF(Dokumentenauswertung!G$10=\"\",\"\",SUM(Dokumentenauswertung!$C$14:$C$27))","v":""},{"$f":"IF(Dokumentenauswertung!H$10=\"\",\"\",SUM(Dokumentenauswertung!$C$14:$C$27))","v":""},{"$f":"IF(Dokumentenauswertung!I$10=\"\",\"\",SUM(Dokumentenauswertung!$C$14:$C$27))","v":""},{"$f":"IF(Dokumentenauswertung!J$10=\"\",\"\",SUM(Dokumentenauswertung!$C$14:$C$27))","v":""},{"$f":"IF(Dokumentenauswertung!K$10=\"\",\"\",SUM(Dokumentenauswertung!$C$14:$C$27))","v":""},{"$f":"IF(Dokumentenauswertung!L$10=\"\",\"\",SUM(Dokumentenauswertung!$C$14:$C$27))","v":""},{"$f":"IF(Dokumentenauswertung!M$10=\"\",\"\",SUM(Dokumentenauswertung!$C$14:$C$27))","v":""},{"$f":"IF(Dokumentenauswertung!N$10=\"\",\"\",SUM(Dokumentenauswertung!$C$14:$C$27))","v":""},{"$f":"IF(Dokumentenauswertung!O$10=\"\",\"\",SUM(Dokumentenauswertung!$C$14:$C$27))","v":""},{"$f":"IF(Dokumentenauswertung!P$10=\"\",\"\",SUM(Dokumentenauswertung!$C$14:$C$27))","v":""},{"$f":"IF(Dokumentenauswertung!Q$10=\"\",\"\",SUM(Dokumentenauswertung!$C$14:$C$27))","v":""},{"$f":"IF(Dokumentenauswertung!R$10=\"\",\"\",SUM(Dokumentenauswertung!$C$14:$C$27))","v":""},{"$f":"IF(Dokumentenauswertung!S$10=\"\",\"\",SUM(Dokumentenauswertung!$C$14:$C$27))","v":""},{"$f":"IF(Dokumentenauswertung!T$10=\"\",\"\",SUM(Dokumentenauswertung!$C$14:$C$27))","v":""},{"$f":"IF(Dokumentenauswertung!U$10=\"\",\"\",SUM(Dokumentenauswertung!$C$14:$C$27))","v":""},{"$f":"IF(Dokumentenauswertung!V$10=\"\",\"\",SUM(Dokumentenauswertung!$C$14:$C$27))","v":""},{"$f":"IF(Dokumentenauswertung!W$10=\"\",\"\",SUM(Dokumentenauswertung!$C$14:$C$27))","v":""},{"$f":"IF(Dokumentenauswertung!X$10=\"\",\"\",SUM(Dokumentenauswertung!$C$14:$C$27))","v":""},{"$f":"IF(Dokumentenauswertung!Y$10=\"\",\"\",SUM(Dokumentenauswertung!$C$14:$C$27))","v":""},{"$f":"IF(Dokumentenauswertung!Z$10=\"\",\"\",SUM(Dokumentenauswertung!$C$14:$C$27))","v":""},{"$f":"IF(Dokumentenauswertung!AA$10=\"\",\"\",SUM(Dokumentenauswertung!$C$14:$C$27))","v":""},{"$f":"IF(Dokumentenauswertung!AB$10=\"\",\"\",SUM(Dokumentenauswertung!$C$14:$C$27))","v":""},{"$f":"IF(Dokumentenauswertung!AC$10=\"\",\"\",SUM(Dokumentenauswertung!$C$14:$C$27))","v":""},{"$f":"IF(Dokumentenauswertung!AD$10=\"\",\"\",SUM(Dokumentenauswertung!$C$14:$C$27))","v":""},{"$f":"IF(Dokumentenauswertung!AE$10=\"\",\"\",SUM(Dokumentenauswertung!$C$14:$C$27))","v":""},{"$f":"IF(Dokumentenauswertung!AF$10=\"\",\"\",SUM(Dokumentenauswertung!$C$14:$C$27))","v":""},{"$f":"IF(Dokumentenauswertung!AG$10=\"\",\"\",SUM(Dokumentenauswertung!$C$14:$C$27))","v":""},{"$f":"IF(Dokumentenauswertung!AH$10=\"\",\"\",SUM(Dokumentenauswertung!$C$14:$C$27))","v":""},{"$f":"IF(Dokumentenauswertung!AI$10=\"\",\"\",SUM(Dokumentenauswertung!$C$14:$C$27))","v":""},{"$f":"IF(Dokumentenauswertung!AJ$10=\"\",\"\",SUM(Dokumentenauswertung!$C$14:$C$27))","v":""},{"$f":"IF(Dokumentenauswertung!AK$10=\"\",\"\",SUM(Dokumentenauswertung!$C$14:$C$27))","v":""}]
[null,null,"Punktezahl pro Fragebogen",{"$f":"IF(Dokumentenauswertung!E$10=\"\",\"\",SUM(D$14:D$28))","v":""},{"$f":"IF(Dokumentenauswertung!F$10=\"\",\"\",SUM(E$14:E$28))","v":""},{"$f":"IF(Dokumentenauswertung!G$10=\"\",\"\",SUM(F$14:F$28))","v":""},{"$f":"IF(Dokumentenauswertung!H$10=\"\",\"\",SUM(G$14:G$28))","v":""},{"$f":"IF(Dokumentenauswertung!I$10=\"\",\"\",SUM(H$14:H$28))","v":""},{"$f":"IF(Dokumentenauswertung!J$10=\"\",\"\",SUM(I$14:I$28))","v":""},{"$f":"IF(Dokumentenauswertung!K$10=\"\",\"\",SUM(J$14:J$28))","v":""},{"$f":"IF(Dokumentenauswertung!L$10=\"\",\"\",SUM(K$14:K$28))","v":""},{"$f":"IF(Dokumentenauswertung!M$10=\"\",\"\",SUM(L$14:L$28))","v":""},{"$f":"IF(Dokumentenauswertung!N$10=\"\",\"\",SUM(M$14:M$28))","v":""},{"$f":"IF(Dokumentenauswertung!O$10=\"\",\"\",SUM(N$14:N$28))","v":""},{"$f":"IF(Dokumentenauswertung!P$10=\"\",\"\",SUM(O$14:O$28))","v":""},{"$f":"IF(Dokumentenauswertung!Q$10=\"\",\"\",SUM(P$14:P$28))","v":""},{"$f":"IF(Dokumentenauswertung!R$10=\"\",\"\",SUM(Q$14:Q$28))","v":""},{"$f":"IF(Dokumentenauswertung!S$10=\"\",\"\",SUM(R$14:R$28))","v":""},{"$f":"IF(Dokumentenauswertung!T$10=\"\",\"\",SUM(S$14:S$28))","v":""},{"$f":"IF(Dokumentenauswertung!U$10=\"\",\"\",SUM(T$14:T$28))","v":""},{"$f":"IF(Dokumentenauswertung!V$10=\"\",\"\",SUM(U$14:U$28))","v":""},{"$f":"IF(Dokumentenauswertung!W$10=\"\",\"\",SUM(V$14:V$28))","v":""},{"$f":"IF(Dokumentenauswertung!X$10=\"\",\"\",SUM(W$14:W$28))","v":""},{"$f":"IF(Dokumentenauswertung!Y$10=\"\",\"\",SUM(X$14:X$28))","v":""},{"$f":"IF(Dokumentenauswertung!Z$10=\"\",\"\",SUM(Y$14:Y$28))","v":""},{"$f":"IF(Dokumentenauswertung!AA$10=\"\",\"\",SUM(Z$14:Z$28))","v":""},{"$f":"IF(Dokumentenauswertung!AB$10=\"\",\"\",SUM(AA$14:AA$28))","v":""},{"$f":"IF(Dokumentenauswertung!AC$10=\"\",\"\",SUM(AB$14:AB$28))","v":""},{"$f":"IF(Dokumentenauswertung!AD$10=\"\",\"\",SUM(AC$14:AC$28))","v":""},{"$f":"IF(Dokumentenauswertung!AE$10=\"\",\"\",SUM(AD$14:AD$28))","v":""},{"$f":"IF(Dokumentenauswertung!AF$10=\"\",\"\",SUM(AE$14:AE$28))","v":""},{"$f":"IF(Dokumentenauswertung!AG$10=\"\",\"\",SUM(AF$14:AF$28))","v":""},{"$f":"IF(Dokumentenauswertung!AH$10=\"\",\"\",SUM(AG$14:AG$28))","v":""},{"$f":"IF(Dokumentenauswertung!AI$10=\"\",\"\",SUM(AH$14:AH$28))","v":""},{"$f":"IF(Dokumentenauswertung!AJ$10=\"\",\"\",SUM(AI$14:AI$28))","v":""},{"$f":"IF(Dokumentenauswertung!AK$10=\"\",\"\",SUM(AJ$14:AJ$28))","v":""}]
[null,null,"Punktezahl in %",{"$f":"IF(Dokumentenauswertung!E$10=\"\",\"\",D$35/D$34)","v":""},{"$f":"IF(Dokumentenauswertung!F$10=\"\",\"\",E$35/E$34)","v":""},{"$f":"IF(Dokumentenauswertung!G$10=\"\",\"\",F$35/F$34)","v":""},{"$f":"IF(Dokumentenauswertung!H$10=\"\",\"\",G$35/G$34)","v":""},{"$f":"IF(Dokumentenauswertung!I$10=\"\",\"\",H$35/H$34)","v":""},{"$f":"IF(Dokumentenauswertung!J$10=\"\",\"\",I$35/I$34)","v":""},{"$f":"IF(Dokumentenauswertung!K$10=\"\",\"\",J$35/J$34)","v":""},{"$f":"IF(Dokumentenauswertung!L$10=\"\",\"\",K$35/K$34)","v":""},{"$f":"IF(Dokumentenauswertung!M$10=\"\",\"\",L$35/L$34)","v":""},{"$f":"IF(Dokumentenauswertung!N$10=\"\",\"\",M$35/M$34)","v":""},{"$f":"IF(Dokumentenauswertung!O$10=\"\",\"\",N$35/N$34)","v":""},{"$f":"IF(Dokumentenauswertung!P$10=\"\",\"\",O$35/O$34)","v":""},{"$f":"IF(Dokumentenauswertung!Q$10=\"\",\"\",P$35/P$34)","v":""},{"$f":"IF(Dokumentenauswertung!R$10=\"\",\"\",Q$35/Q$34)","v":""},{"$f":"IF(Dokumentenauswertung!S$10=\"\",\"\",R$35/R$34)","v":""},{"$f":"IF(Dokumentenauswertung!T$10=\"\",\"\",S$35/S$34)","v":""},{"$f":"IF(Dokumentenauswertung!U$10=\"\",\"\",T$35/T$34)","v":""},{"$f":"IF(Dokumentenauswertung!V$10=\"\",\"\",U$35/U$34)","v":""},{"$f":"IF(Dokumentenauswertung!W$10=\"\",\"\",V$35/V$34)","v":""},{"$f":"IF(Dokumentenauswertung!X$10=\"\",\"\",W$35/W$34)","v":""},{"$f":"IF(Dokumentenauswertung!Y$10=\"\",\"\",X$35/X$34)","v":""},{"$f":"IF(Dokumentenauswertung!Z$10=\"\",\"\",Y$35/Y$34)","v":""},{"$f":"IF(Dokumentenauswertung!AA$10=\"\",\"\",Z$35/Z$34)","v":""},{"$f":"IF(Dokumentenauswertung!AB$10=\"\",\"\",AA$35/AA$34)","v":""},{"$f":"IF(Dokumentenauswertung!AC$10=\"\",\"\",AB$35/AB$34)","v":""},{"$f":"IF(Dokumentenauswertung!AD$10=\"\",\"\",AC$35/AC$34)","v":""},{"$f":"IF(Dokumentenauswertung!AE$10=\"\",\"\",AD$35/AD$34)","v":""},{"$f":"IF(Dokumentenauswertung!AF$10=\"\",\"\",AE$35/AE$34)","v":""},{"$f":"IF(Dokumentenauswertung!AG$10=\"\",\"\",AF$35/AF$34)","v":""},{"$f":"IF(Dokumentenauswertung!AH$10=\"\",\"\",AG$35/AG$34)","v":""},{"$f":"IF(Dokumentenauswertung!AI$10=\"\",\"\",AH$35/AH$34)","v":""},{"$f":"IF(Dokumentenauswertung!AJ$10=\"\",\"\",AI$35/AI$34)","v":""},{"$f":"IF(Dokumentenauswertung!AK$10=\"\",\"\",AJ$35/AJ$34)","v":""}]
[]
[]
[]
[null,null,"Mittelwert Richtige in % (über alle Auswertungen)"]
[null,null,{"$f":"IFERROR(AVERAGE(D32:AJ32),\"keine Daten zur Bestimmung des Mittelwertes\")","v":"keine Daten zur Bestimmung des Mittelwertes"}]
[]
[null,null,"Mittelwert Punktezahl in % (über alle Auswertungen)"]
[null,null,{"$f":"IFERROR(AVERAGE(D36:AJ36),\"keine Daten zur Bestimmung des Mittelwertes\")","v":"keine Daten zur Bestimmung des Mittelwertes"}]

{"sheet":"Fragenauswertung","index":2,"n_rows":15,"n_cols":6,"rows_kept":15,"cut":false,"hidden":false,"merged":[]}
["Frage Nr.","Richtige","Falsche","Richtig in %","Falsch in %","Gesamt"]
[{"$f":"Dokumentenauswertung!$A14","v":"A1"},{"$f":"COUNTIF(Punkteauswertung!$D14:$AJ14,\">0\")","v":0},{"$f":"COUNTIF(Punkteauswertung!$D14:$AJ14,0)","v":0},{"$f":"IFERROR(B2/$F2,\"\")","v":""},{"$f":"IFERROR(C2/$F2,\"\")","v":""},{"$f":"SUM(B2:C2)","v":0}]
[{"$f":"Dokumentenauswertung!$A15","v":"A2"},{"$f":"COUNTIF(Punkteauswertung!$D15:$AJ15,\">0\")","v":0},{"$f":"COUNTIF(Punkteauswertung!$D15:$AJ15,0)","v":0},{"$f":"IFERROR(B3/$F3,\"\")","v":""},{"$f":"IFERROR(C3/$F3,\"\")","v":""},0]
[{"$f":"Dokumentenauswertung!$A16","v":"A3.1"},{"$f":"COUNTIF(Punkteauswertung!$D16:$AJ16,\">0\")","v":0},{"$f":"COUNTIF(Punkteauswertung!$D16:$AJ16,0)","v":0},"","",0]
[{"$f":"Dokumentenauswertung!$A17","v":"A3.2"},{"$f":"COUNTIF(Punkteauswertung!$D17:$AJ17,\">0\")","v":0},{"$f":"COUNTIF(Punkteauswertung!$D17:$AJ17,0)","v":0},"","",0]
[{"$f":"Dokumentenauswertung!$A18","v":"A4"},{"$f":"COUNTIF(Punkteauswertung!$D18:$AJ18,\">0\")","v":0},{"$f":"COUNTIF(Punkteauswertung!$D18:$AJ18,0)","v":0},"","",0]
[{"$f":"Dokumentenauswertung!$A19","v":"A5.1"},{"$f":"COUNTIF(Punkteauswertung!$D19:$AJ19,\">0\")","v":0},{"$f":"COUNTIF(Punkteauswertung!$D19:$AJ19,0)","v":0},"","",0]
[{"$f":"Dokumentenauswertung!$A20","v":"A5.2"},{"$f":"COUNTIF(Punkteauswertung!$D20:$AJ20,\">0\")","v":0},{"$f":"COUNTIF(Punkteauswertung!$D20:$AJ20,0)","v":0},"","",0]
[{"$f":"Dokumentenauswertung!$A21","v":"B1"},{"$f":"COUNTIF(Punkteauswertung!$D21:$AJ21,\">0\")","v":0},{"$f":"COUNTIF(Punkteauswertung!$D21:$AJ21,0)","v":0},"","",0]
[{"$f":"Dokumentenauswertung!$A22","v":"B2"},{"$f":"COUNTIF(Punkteauswertung!$D22:$AJ22,\">0\")","v":0},{"$f":"COUNTIF(Punkteauswertung!$D22:$AJ22,0)","v":0},"","",0]
[{"$f":"Dokumentenauswertung!$A23","v":"B3"},{"$f":"COUNTIF(Punkteauswertung!$D23:$AJ23,\">0\")","v":0},{"$f":"COUNTIF(Punkteauswertung!$D23:$AJ23,0)","v":0},"","",0]
[{"$f":"Dokumentenauswertung!$A24","v":"C1"},{"$f":"COUNTIF(Punkteauswertung!$D24:$AJ24,\">0\")","v":0},{"$f":"COUNTIF(Punkteauswertung!$D24:$AJ24,0)","v":0},"","",0]
[{"$f":"Dokumentenauswertung!$A25","v":"C2"},{"$f":"COUNTIF(Punkteauswertung!$D25:$AJ25,\">0\")","v":0},{"$f":"COUNTIF(Punkteauswertung!$D25:$AJ25,0)","v":0},"","",0]
[{"$f":"Dokumentenauswertung!$A26","v":"C3.1"},{"$f":"COUNTIF(Punkteauswertung!$D26:$AJ26,\">0\")","v":0},{"$f":"COUNTIF(Punkteauswertung!$D26:$AJ26,0)","v":0},"","",0]
[{"$f":"Dokumentenauswertung!$A27","v":"C3.2"},{"$f":"COUNTIF(Punkteauswertung!$D27:$AJ27,\">0\")","v":0},{"$f":"COUNTIF(Punkteauswertung!$D27:$AJ27,0)","v":0},"","",0]